Cogmind - Beta 17 @@@ ROGUE MODE // 2026.07.18 @ 15:55:43 Player: shapeshifter Result: Destroyed by G-73 Enforcer with Phase Gun Performance ------------- Evolutions (8) 4000 Regions Visited (26) 5200 Robots Destroyed (296) 1480 Value Destroyed (16587) 16587 Prototype IDs (111) 2220 Alien Tech Used (6) 1200 Bonus (48371) 48371 TOTAL SCORE: 79058 Bonus ------- Triggered Max Security 1000 High Alert Combat Kills 3664 Follower Combat Kills 1397 Prayed to X0-1V1 5000 Major X0-1V1 Interference 18450 Met Data Miner 300 Met Imprinter 300 Destroyed Z-Imprinter 1000 Met Warlord at Base 500 MAIN.C Attacked Warlord 500 Warlord Defense Kills 3492 Used Core Reset Matrix 3000 Met Warlord at Research 2000 Scanned by Researcher 1000 Pursued by Intercept 500 Acquired SGEMP 2000 Met Sigix 2000 Activated Exoskeleton 3000 Friendly Fire -732 Cogmind --------- Core Integrity 0/1600 Matter 513/800 Energy 287/300 System Corruption 7% Temperature Cool (18) Movement Core (50) +NEM 1 Location -2/Section 7 Parts ------- > --- POWER (4) -------- (None) > --- PROPULSION (8) --- (None) > --- UTILITY (9) ------ Advanced Targeting Computer > --- WEAPON (3) ------- (None) > --- INVENTORY (5) ---- Improved Antigrav System Dimensional Node Initializer Tesla Bomb Launcher Neutron Missile Launcher Peak State ------------ > --- POWER ------------ Quantum Reactor Light Quantum Reactor Improved Quantum Reactor Improved Quantum Reactor > --- PROPULSION ------- Biometal Leg Enhanced Biometal Leg Enhanced Biometal Leg Enhanced Biometal Leg Centrium Leg Centrium Leg Heavy Shield Leg > --- UTILITY ---------- Experimental Heat Sink Huge Storage Unit Experimental Optical Array Experimental Core Analyzer Experimental Core Analyzer Improved Armor Integrity Analyzer Advanced Kinecellerator Advanced Weapon Cycler Experimental ECM Suite > --- WEAPON ----------- Helical Railgun Helical Railgun Helical Railgun > --- INVENTORY -------- Advanced Cooling System Advanced Energy Well Long-range Tractor Beam Dimensional Node Initializer Transdimensional Reconstructor Transdimensional Reconstructor High-powered Transdimensional Reconstructor High-powered Transdimensional Reconstructor Helical Railgun Helical Railgun Helical Railgun Helical Railgun Multirail Tesla Bomb Launcher Compact Tesla Bomb Launcher Neutron Missile Launcher Sigix Terminator Advanced Remote Datajack Multitool Sigix Broadsword CR-A16's Pointy Stick Sigix Containment Pod [Rating: 229] Favorites ----------- Power Improved Quantum Reactor Engine Light Ion Engine Power Core Fission Core Reactor Improved Quantum Reactor Propulsion Biometal Leg Treads High-density Centrium Heavy Treads Leg Biometal Leg Wheel Armored Huge Wheel Hover Unit Combat Airjet Flight Unit Diametric Drive Utility X0-1V1's Piety Tracker Device X0-1V1's Piety Tracker Storage Small Storage Unit Processor Experimental Core Analyzer Hackware Experimental Hacking Suite Protection Centrium Light Armor Plating Weapon Helical Railgun Energy Gun Heavy Wave Gun Energy Cannon Matter Neutralizer Ballistic Gun Helical Railgun Ballistic Cannon Antimatter Cannon Launcher Smartbomb Launcher Special Weapon Remote Datajack Impact Weapon Great Maul Slashing Weapon Makeshift Sword Piercing Weapon Heavy Pick Build | -11 -10 -10 -10 -8 -7 -7 -7 -7 -7 -6 -6 -6 -6 -6 -5 -5 -4 -4 -4 -4 -3 -3 -3 -2 -2 -2 ------- Run | Yrd Mat Min Sub Mat Fac Low Low Zio Dee Pro Fac Low Low Dat Pro Fac Fac Upp Upp War Pro Res Tes Res Qua Sec Slots Evolved 16 | . . . . 4 2 . . . . . 2 . . . . 2 2 . . . . 2 . 2 . . Power 2 | . . . . . . . . . . . . . . . . . 1 . . . . . . 1 . . Propulsion 5 | . . . . 2 . . . . . . 1 . . . . 1 . . . . . . . 1 . . Utility 8 | . . . . 2 1 . . . . . 1 . . . . 1 1 . . . . 2 . . . . Weapon 1 | . . . . . 1 . . . . . . . . . . . . . . . . . . . . . Parts Attached 343 | 7 3 5 23 1 2 5 . 2 19 2 14 1 5 . 1 9 14 1 4 36 12 25 41 52 37 22 Power 49 | 1 . 1 2 . . 1 . . 1 . 3 . 1 . . . 3 1 . 6 . 4 5 8 9 3 Engine 8 | 1 . 1 1 . . 1 . . . . 2 . 1 . . . . . . 1 . . . . . . Core 5 | . . . 1 . . . . . . . 1 . . . . . . 1 . 1 . 1 . . . . Reactor 36 | . . . . . . . . . 1 . . . . . . . 3 . . 4 . 3 5 8 9 3 Propulsion 97 | 2 . 1 7 1 . . . . 6 . 3 . 1 . . 1 2 . 2 12 3 4 12 20 11 9 Treads 11 | 2 . 1 . . . . . . . . . . . . . . 1 . . 3 . . . . 4 . Leg 62 | . . . 4 . . . . . . . . . . . . . 1 . 2 9 1 4 12 20 7 2 Wheel 4 | . . . 3 . . . . . . . . . 1 . . . . . . . . . . . . . Hover 16 | . . . . . . . . . 3 . 3 . . . . 1 . . . . 2 . . . . 7 Flight 4 | . . . . 1 . . . . 3 . . . . . . . . . . . . . . . . . Utility 109 | 2 1 2 6 . 1 2 . . 8 2 5 1 . . . 3 4 . 2 11 6 9 13 16 12 3 Device 64 | 1 1 . 4 . 1 . . . 3 1 3 1 . . . . 2 . 2 4 3 8 11 9 8 2 Storage 10 | 1 . 1 . . . . . . 2 . 1 . . . . . 1 . . . . 1 . 1 1 1 Processor 12 | . . . 1 . . . . . . . 1 . . . . 2 1 . . 1 . . . 4 2 . Hackware 5 | . . . . . . 1 . . . . . . . . . . . . . . 2 . 1 1 . . Protection 18 | . . 1 1 . . 1 . . 3 1 . . . . . 1 . . . 6 1 . 1 1 1 . Artifact . | . . . . . . . . . . . . . . . . . . . . . . . . . . . Weapon 88 | 2 2 1 8 . 1 2 . 2 4 . 3 . 3 . 1 5 5 . . 7 3 8 11 8 5 7 Energy Gun 18 | . . . 1 . . . . . 4 . . . . . . 5 3 . . 1 . 2 1 . . 1 Energy Cannon 23 | . . 1 4 . . 1 . . . . . . . . 1 . . . . 1 1 5 4 2 . 3 Ballistic Gun 23 | 2 2 . 1 . . . . . . . . . 2 . . . . . . 3 1 . 4 3 4 1 Ballistic Cannon 2 | . . . 1 . . . . . . . . . . . . . . . . . . 1 . . . . Launcher 5 | . . . . . . . . . . . . . . . . . 1 . . 1 . . 1 2 . . Special Weapon 2 | . . . . . . . . . . . . . . . . . . . . . . . 1 1 . . Impact Weapon 3 | . . . . . 1 . . . . . . . 1 . . . . . . . . . . . 1 . Slashing Weapon 5 | . . . 1 . . . . 1 . . . . . . . . 1 . . 1 . . . . . 1 Piercing Weapon 7 | . . . . . . 1 . 1 . . 3 . . . . . . . . . 1 . . . . 1 Special Melee Weapon . | . . . . . . . . . . . . . . . . . . . . . . . . . . . Unidentified Prototypes 58 | . 1 . 1 . . . . . 7 . 2 . . . . . 5 . 1 11 2 . 8 8 8 4 Corrupted Parts 8 | . . . . . . . . . . . . . . . . . 1 1 3 . . 1 2 . . . System Corruption 51 | . . . . . . . . . . . . . . . . . 7 9 20 . . 3 12 . . . Parts Lost 144 | . . 2 14 . . . 1 . 10 . 2 1 1 . . 10 1 2 5 19 14 1 10 3 13 35 Power 28 | . . . 2 . . . . . 2 . . 1 . . . 2 . 1 1 5 1 . 3 1 3 6 Propulsion 42 | . . 1 4 . . . . . 3 . 2 . 1 . . 2 . . . 6 5 . 2 . 3 13 Utility 42 | . . . 4 . . . . . 2 . . . . . . 1 1 . 2 3 6 . 5 2 5 11 Weapon 32 | . . 1 4 . . . 1 . 3 . . . . . . 5 . 1 2 5 2 1 . . 2 5 Highest Loss Streak 9 | . . 1 4 . . . 1 . 5 . 2 1 1 . . 7 1 2 5 9 9 1 5 2 8 9 To Critical Strikes 5 | . . 1 . . . . . . . . . . . . . . . . . . 2 . 1 . . 1 Average Backups 9 | 3 5 8 4 1 2 3 4 4 7 5 5 6 7 8 8 6 6 7 6 8 5 5 14 16 20 12 Power . | 1 1 . . . . . . . . . . . . . . . . . . . . . . . . . Propulsion . | . . . . . . . 1 1 1 . . . . . . . . . . . 1 . . . . . Utility 3 | . 1 3 1 . . 1 1 1 3 3 2 3 4 6 6 4 2 3 2 4 1 1 4 5 4 2 Weapon 3 | . 2 2 2 . . . 1 1 1 1 1 2 1 1 1 1 2 2 1 1 2 2 8 7 10 6 Tool/Special . | . . . . . . . . . . . . . . . . . . . . . . . . . . . Unused Backups 65 | . . 6 13 . . 1 . . . . 1 . 9 . 1 . 2 . . 8 . 2 8 1 9 4 Power . | . . . . . . . . . . . . . . . . . . . . . . . . . . . Propulsion 6 | . . 3 . . . . . . . . . . . . . . . . . 2 . . . . . 1 Utility 31 | . . 1 7 . . . . . . . . . 5 . 1 . 2 . . 3 . 1 5 . 5 1 Weapon 21 | . . 2 5 . . . . . . . 1 . 3 . . . . . . 2 . 1 3 1 2 1 Tool/Special 7 | . . . 1 . . 1 . . . . . . 1 . . . . . . 1 . . . . 2 1 Average Slot Usage (%) 85 | . 100 91 86 43 39 63 83 82 81 63 88 74 93 75 80 72 87 90 86 78 47 82 97 93 90 52 Engine 4 | . 13 13 17 . . 2 . . . . 10 5 4 . . . . . . . . . . . . . Core 2 | . . . 1 13 10 6 7 7 2 . . 5 6 12 12 6 . 4 3 . 4 1 2 . . . Reactor 5 | . . . . . . . . . 1 . . . . . . . 10 10 10 9 . 8 10 14 14 5 Treads 3 | . 27 20 . . . . . . . . . . . . . . 8 10 13 8 . . . . 4 7 Leg 11 | . . . 17 1 . . . . . . . . 4 . . . 4 5 5 13 2 20 29 29 22 1 Hover 6 | . . . . . . . . . . 7 11 15 26 25 25 21 10 10 3 . 8 4 . . . 1 Flight 2 | . . . . 4 5 14 28 28 26 21 17 3 1 . . . . . . . . . . . . . Device 17 | . 13 13 6 13 15 20 28 24 18 19 17 14 22 25 25 16 19 20 19 13 12 26 30 24 14 8 Storage 5 | . 13 13 5 . . . . . 4 1 2 6 6 6 6 5 5 5 5 5 . . 4 4 4 4 Processor 3 | . . . . . . . . . 1 . 5 7 1 . . 8 9 8 2 5 5 4 2 1 14 12 Hackware 1 | . . . . . . . . . . . . . . . . . . . 1 4 3 2 . 5 . . Protection 2 | . . . 6 . . 2 7 10 7 6 9 2 1 . . 1 . . 3 1 4 3 2 . 2 . Energy Gun 2 | . . . 1 . . . . . 4 7 1 . . . . 6 17 15 17 14 . 1 . . . . Energy Cannon 4 | . . 5 15 . . 1 . 2 . . . . . . 5 3 . . . . . 3 11 10 . 2 Ballistic Gun 3 | . 30 24 2 . . . . . . . . . . . . . . . . 2 . . 1 1 11 5 Ballistic Cannon 1 | . . . 4 8 3 . . . . . . 1 6 . . . . . . . . 1 . . . . Launcher 1 | . . . . . 1 5 5 . . . . . 6 6 6 1 . . . . . . . . . . Piercing Weapon 1 | . . . . . . 2 . 1 4 . 10 10 1 . . . . . . . 4 1 . . . . Peak Build Rating 229 | 7 21 24 44 72 77 84 78 83 86 76 89 77 99 82 88 98 150 152 153 162 105 147 176 220 229 229 Average Rating 107 | 4 15 21 21 66 71 79 76 75 77 68 78 72 94 82 87 84 137 143 147 143 75 134 157 193 217 144 On Entrance 87 | . 7 21 24 44 68 74 82 72 84 48 70 56 76 85 82 88 65 150 151 141 97 48 141 135 220 225 Avg Prop Armor Cover (%) 5 | . . . 9 . . . . . 9 5 5 3 3 . . 3 6 5 3 11 6 1 1 5 3 10 Naked Turns . | . . . . . . . . . . . . . . . . . . . . . . . . . . . Heaviest Build 188 | 13 15 21 47 20 23 43 28 26 46 12 18 28 55 31 40 44 90 93 110 109 39 123 133 176 183 188 Greatest Support 360 | 40 40 42 40 24 24 28 28 28 42 12 46 44 58 49 49 49 105 105 207 225 75 137 190 238 360 360 Greatest Overweight (x) 5 | . . . 2 . . 1 . . 1 . . . 1 . . . . . 1 1 1 . . . 1 5 Average Overweight (x) . | . . . . . . . . . . . . . . . . . . . . . . . . . . . Largest Inventory Capacity 25 | 8 8 10 10 5 5 5 5 5 10 10 8 8 8 8 8 8 10 10 10 10 10 15 15 20 25 25 Average Capacity 10 | 7 8 9 7 5 5 5 5 5 7 5 5 8 8 8 8 8 9 10 10 9 5 5 15 17 24 19 Most Carried 25 | 5 8 10 10 5 4 5 4 5 10 6 8 8 8 8 8 8 9 9 10 10 10 15 15 20 25 25 Average Carried 9 | 3 5 8 6 1 2 4 4 4 7 5 5 6 7 8 7 5 7 7 7 9 5 5 14 16 24 16 Final Capacity 25 | 8 8 10 10 5 5 5 5 5 10 5 8 8 8 8 8 8 10 10 10 10 5 15 15 20 25 5 Final Carried 25 | 3 6 9 9 1 4 4 4 5 7 5 8 8 8 8 8 5 8 7 5 10 5 15 15 20 25 4 Transmogrified Parts 88 | . . . 6 . 1 7 . 3 9 . 2 6 30 . 1 1 4 4 14 . . . . . . . Integrity Recovered 1077 | . . . 140 . 21 60 . 56 79 . 1 45 93 . 7 4 125 104 342 . . . . . . . Class Distribution -------------------- 29% | Mutant 18% | Tank 13% | Scavenger-Tank 11% | Scavenger-Gunner 8% | Gunner 8% | Scavenger-Mutant 3% | Subdweller-Mutant Dominant Class ---------------- Mutant | -10/Materials Mutant | -10/Mines Mutant | -10/Subcaves Mutant | -8/Materials Mutant | -7/Factory Mutant | -7/Lower Caves Sprinter | -7/Lower Caves Sprinter | -7/Zion Sprinter | -7/Deep Caves Scavenger-Sprinter | -6/Proximity Caves Mutant | -6/Factory Mutant | -6/Lower Caves Tank | -6/Lower Caves Mutant | -6/Data Miner Gunner | -5/Proximity Caves Gunner | -5/Factory Tank | -4/Factory Tank | -4/Upper Caves Tank | -4/Upper Caves Tank | -4/Warlord Scavenger-Mutant | -3/Proximity Caves Scavenger-Mutant | -3/Research Scavenger-Tank | -3/Testing Scavenger-Tank | -2/Research Scavenger-Gunner | -2/Quarantine Scavenger-Mutant | -2/Section 7 Resources | -11 -10 -10 -10 -8 -7 -7 -7 -7 -7 -6 -6 -6 -6 -6 -5 -5 -4 -4 -4 -4 -3 -3 -3 -2 -2 -2 ----------- Run | Yrd Mat Min Sub Mat Fac Low Low Zio Dee Pro Fac Low Low Dat Pro Fac Fac Upp Upp War Pro Res Tes Res Qua Sec Matter Collected 11381 | 326 92 220 708 . . 98 40 39 413 65 44 80 355 . 138 133 137 134 312 901 502 215 1241 1584 2109 1495 Remotely 1346 | . . . . . . . . . . . . . . . . . . . . . . . . 609 737 . Salvage Created 15674 | 192 280 249 1134 29 . 104 138 . 207 . 62 80 200 . . 83 281 254 796 942 408 1198 1872 1772 3187 2206 Parts 671 | 20 23 13 62 . . 8 10 . 9 . 11 7 2 . . 5 10 8 33 21 8 45 76 76 142 82 Haulers Intercepted 2 | . . . . . . . . . . . . . . . . . . . . . . 1 . . . 1 Recyclers Shooed 3 | . 1 . . . . . . . . . . . . . . 1 . . . . . 1 . . . . Parts Field Recycled . | . . . . . . . . . . . . . . . . . . . . . . . . . . . Retrieved Matter . | . . . . . . . . . . . . . . . . . . . . . . . . . . . Parts Self-Destructed 70 | . . . 48 . . 2 8 . . 1 . . . . . . . 2 7 . 2 . . . . . Prevented 35 | . . . . . . . . . . . . . . . . . . 6 25 . 4 . . . . . Parts Restored . | . . . . . . . . . . . . . . . . . . . . . . . . . . . Kills | -11 -10 -10 -10 -8 -7 -7 -7 -7 -7 -6 -6 -6 -6 -6 -5 -5 -4 -4 -4 -4 -3 -3 -3 -2 -2 -2 ------- Run | Yrd Mat Min Sub Mat Fac Low Low Zio Dee Pro Fac Low Low Dat Pro Fac Fac Upp Upp War Pro Res Tes Res Qua Sec Combat Hostiles Destroyed 244 | . 9 7 36 1 . 4 7 . 5 . . . 2 . . 1 4 5 12 25 3 12 24 31 34 22 Melee 10 | . . . 4 . . 1 1 . 3 . . . . . . . . . . . 1 . . . . . Guns 91 | . 9 4 8 . . . . . 2 . . . . . . . 1 1 1 13 1 1 6 2 27 15 Cannons 68 | . . 1 22 1 . . . . . . . . . . . 1 . . . 3 1 9 12 17 . 1 AOE 44 | . . 2 . . . 3 6 . . . . . 2 . . . 3 3 4 9 . . . 9 . 3 Classes Destroyed 33 | 3 3 2 2 1 . 1 1 . 2 . 1 1 2 . . . . . 1 3 . 2 5 . 2 1 Worker 12 | 1 . 1 . . . . . . . . 2 . . . . 1 . . . . . . 2 . . 5 Builder 6 | . . 1 . . . . . . . . . . . . . . 1 . . . . . 4 . . . Tunneler 6 | 5 . . . . . . . . . . 1 . . . . . . . . . . . . . . . Hauler 2 | . . . . . . . . . . . . . . . . . . . . . . 1 . . . 1 Recycler 4 | 1 . . . . . . . . . . . . . . . . 1 . . . . 2 . . . . Mechanic 1 | . . . . . . . . . . . . . . . . . . . . . . . . . 1 . Operator 11 | . . . . . . . . . . . 1 1 . . . . . . . . . . . . 8 1 Turret 2 | . . . 2 . . . . . . . . . . . . . . . . . . . . . . . Watcher 5 | . 1 . . . . . . . . . . . . . . . . . . . . . 1 . 2 1 Swarmer 42 | . 5 1 13 . . . 3 . . . . . . . . . 4 3 4 . . . . 5 4 . Grunt 85 | . 4 5 10 . . 3 3 . . . . . . . . 1 . 1 4 12 1 7 6 1 15 12 Brawler 8 | . . . . . . . . . . . . . . . . . . . 1 1 . . 1 . 2 3 Duelist 5 | . . . . . . 1 . . . . . . . . . . . . 1 1 . . . . 2 . Protector 7 | . . . . . . . . . . . . . . . . . . . . 4 . . . . 2 1 Researcher 3 | . . . . . . . . . . . . . . . . . . . . . . . 1 . . 2 Sentry 6 | . . 1 1 . . . . . . . . . . . . . . 1 . . . . 1 . . 2 Demolisher 6 | . . . . . . . . . . . . . . . . . . . . 4 . . . 2 . . Specialist 2 | . . . . . . . . . . . . . . . . . . . . . . . 2 . . . Hunter 29 | . . . . 1 . . . . . . . . . . . . . . 2 . 2 . 8 9 4 3 Programmer 14 | . . . . . . . 1 . . . . . . . . . . . . . . 4 2 6 1 . Heavy 1 | . . . . . . . . . . . . . . . . . . . . . . 1 . . . . Q-Series 4 | . . . . . . . . . . . . . . . . . . . . . . . 2 . 2 . Behemoth 1 | . . . . . . . . . . . . . . . . . . . . . . . . . . 1 Investigator 1 | . . . . . . . . . . . . . . . . . . . . . . . 1 . . . Striker 3 | . . . . . . . . . . . . . . . . . . . . . . . 1 2 . . Executioner 9 | . . . . . . . . . . . . . . . . . . . . 3 . . . 6 . . Alpha 7 2 | . . . . . . . . . . . . . . . . . . . . . . . 1 . 1 . Fortress 1 | . . . . . . . . . . . . . . . . . . . . . . . . . 1 . Subdweller 12 | . . . 12 . . . . . . . . . . . . . . . . . . . . . . . Z-Light 2 | . . . . . . . . . 2 . . . . . . . . . . . . . . . . . Decomposer 1 | . . . . . . . . . . . . . 1 . . . . . . . . . . . . . Packrat 5 | . . . . . . . . . . . . . 2 . . . . . . . 3 . . . . . Samaritan 1 | . . . . . . . . . . . . . 1 . . . . . . . . . . . . . Assembled 2 | . . . . . . . . . 2 . . . . . . . . . . . . . . . . . Fireman 2 | . . . . . . . . . . . . . 2 . . . . . . . . . . . . . Mutant 1 | . . . . . . . . . . . . 1 . . . . . . . . . . . . . . Best Kill Streak 15 | 4 5 3 5 1 . 4 6 . 2 . 1 . 2 . . 1 5 5 4 15 1 8 7 8 14 9 Combat Bots Only 15 | . 4 2 5 1 . 4 6 . 2 . . . 2 . . 1 4 5 4 15 1 6 5 8 6 8 Max Kills in Single Turn 5 | 1 2 3 1 1 . 2 2 . 1 . 1 1 1 . . 1 3 2 2 5 1 1 2 3 4 3 Gunslinging 1 | . 1 . . . . . . . . . . . . . . . . . . 1 . . . . 1 . Exploded 5 | . . 2 . . . 2 2 . . . . . 1 . . . 2 2 2 5 . . . 3 . 2 Melee 1 | . . . 1 . . 1 1 . 1 . . . . . . . . . . . 1 . . . . . Uniques/NPCs Destroyed 1 | . . . . . . . . . 1 . . . . . . . . . . . . . . . . . Z-Imprinter (-7/Deep Caves) Combat | -11 -10 -10 -10 -8 -7 -7 -7 -7 -7 -6 -6 -6 -6 -6 -5 -5 -4 -4 -4 -4 -3 -3 -3 -2 -2 -2 -------- Run | Yrd Mat Min Sub Mat Fac Low Low Zio Dee Pro Fac Low Low Dat Pro Fac Fac Upp Upp War Pro Res Tes Res Qua Sec Hostile Shots Fired 2917 | . 33 67 254 33 9 4 17 . 52 11 38 3 5 . 1 139 11 29 73 443 133 96 349 258 312 547 Missed 891 | . 9 11 80 15 5 1 6 . 13 10 18 2 2 . 1 43 7 11 27 113 49 26 114 73 91 164 Hits 2026 | . 24 56 174 18 4 3 11 . 39 1 20 1 3 . . 96 4 18 46 330 84 70 235 185 221 383 Melee 46 | . . . . . . . . . 5 . . . . . . 1 . . 4 9 . . 12 4 2 9 Projectile 1980 | . 24 56 174 18 4 3 11 . 34 1 20 1 3 . . 95 4 18 42 321 84 70 223 181 219 374 AOE 48 | . . . 1 . . . . . . . . . . . . . . . . 40 . . 4 . . 3 Critical Strikes 79 | . . 3 . . . . . . 1 . . . . . . 1 . 1 3 19 7 2 12 8 8 14 Part Disruptions 6 | . . . . . . . . . . . . 1 . . . . . . . . . 1 2 1 1 . Damage Taken 36664 | . 214 681 2459 297 35 128 307 . 974 17 144 81 338 . . 1794 60 300 925 7176 1497 1138 3685 3098 4836 6480 Core 4638 | . 24 161 445 47 . 15 14 . 222 17 17 26 87 . . 395 . . 39 611 243 102 377 323 421 1052 Absorbed by Shields 6183 | . . . . . . . . . . . . . . . . . . 113 71 217 . 431 1302 2104 888 1057 Reduced by Siege Mode 588 | . . . . . . . . . . . . . . . . . . . . 526 . . . . 62 . Redirected to Shielding 24 | . . . . . . . . . 24 . . . . . . . . . . . . . . . . . Ignored by Resistances 3421 | . . 36 37 . . . . . . . . . . . . . . . . 1604 . . 107 . . 1637 Regen/Repaired (Parts) 482 | . . . . . . . . 364 . . . . . . . . . . . . . . . . . 118 Core Remaining (%) 72 | 100 . . 49 93 . . . . . 68 . . . . 87 65 . . . . 52 . 66 . . . Volleys Fired 835 | 28 21 31 149 6 . 5 8 . 9 2 4 . 5 . 1 13 12 7 32 53 21 59 101 81 116 71 Largest 4 | 2 4 4 2 1 . 1 1 . 2 1 1 . 1 . 1 4 2 3 3 4 2 2 3 3 3 3 Hottest 338 | 40 80 88 160 40 . 43 43 . 120 60 60 . 46 . 81 260 169 210 244 328 76 169 315 338 114 275 Shots Fired 1789 | 56 62 77 275 6 . 6 9 . 15 2 4 2 6 . 2 31 19 13 42 119 25 81 247 209 329 152 Gun 1037 | 56 62 63 58 . . . . . 14 2 4 . . . . 28 16 10 28 99 22 22 85 25 320 123 Cannon 662 | . . 14 217 6 . . . . . . . 2 . . 2 3 . . . 13 3 59 154 175 . 14 Launcher 88 | . . . . . . 6 9 . . . . . 6 . . . 3 3 14 7 . . 8 8 9 15 Special 2 | . . . . . . . . . 1 . . . . . . . . . . . . . . 1 . . Kinetic 863 | 56 62 63 61 6 . . . . . . . 2 . . . . . . . 45 22 22 56 25 320 123 Thermal 666 | . . 14 214 . . . . . 14 2 4 . . . . . 6 1 12 54 . 12 144 175 . 14 Explosive 42 | . . . . . . 6 9 . . . . . 6 . . . . . . 7 . . . 7 3 4 Electromagnetic 190 | . . . . . . . . . . . . . . . 2 31 13 12 30 . . 47 37 1 6 11 Entropic 26 | . . . . . . . . . . . . . . . . . . . . 13 3 . 10 . . . Robot Hit Streak 29 | 9 9 7 9 7 . 3 6 . 9 . 1 . 3 . . 5 8 14 5 22 14 29 11 9 11 13 Robot Miss Streak 9 | 3 3 3 4 1 . 1 . . 4 6 . . . . 1 3 1 3 7 3 1 3 9 8 6 5 Penetration Max 1 | . . . . . . . . . . . . . . . . . . . . 1 . . 1 . 1 1 Secondary Targets 28 | . 2 1 . . . . . . . . . . . . . 1 . . . 4 . . 1 2 12 5 Max Gunslinging Chain 1 | . 1 1 . . . . . . . . . . . . . 1 . . . 1 . . 1 1 1 1 Shots Hit Robots 1079 | 36 36 43 126 5 . 4 6 . 13 . 8 5 5 . . 16 8 11 23 105 33 65 128 110 192 101 Core Hits 652 | 12 16 18 44 2 . 8 11 . 7 . 4 2 11 . . 10 11 10 38 94 10 27 72 54 105 86 Critical Kills 23 | 1 . 1 2 . . . . . . . . . . . . . . . . 2 . . 5 2 4 6 Critical Parts Destroyed 14 | . . . . . . . . . . . . . . . . . . . . 2 3 . 1 1 6 1 Critical Strikes 57 | 1 . 1 4 . . 1 . . . . . 1 . . . . . 3 . 9 3 2 11 3 10 8 Burn 2 | . . . 1 . . . . . . . . . . . . . . . . 1 . . . . . . Meltdown 9 | . . . 2 . . . . . . . . . . . . . . . . . . . 5 2 . . Destroy 29 | 1 . 1 . . . . . . . . . . . . . . . . . 4 3 . 1 1 10 8 Blast 3 | . . . 1 . . . . . . . . . . . . . . . . . . 2 . . . . Corrupt 3 | . . . . . . . . . . . . . . . . . . 3 . . . . . . . . Sever 1 | . . . . . . . . . . . . . . . . . . . . 1 . . . . . . Impale 2 | . . . . . . 1 . . . . . 1 . . . . . . . . . . . . . . Sunder 8 | . . . . . . . . . . . . . . . . . . . . 3 . . 5 . . . Melee Attacks 99 | . . . 15 . 1 1 5 1 11 . 20 6 5 . . . . . . 7 14 . . . 1 12 Kinetic 1 | . . . . . . . . . . . . . . . . . . . . . . . . . 1 . Impact 7 | . . . . . 1 . 5 1 . . . . . . . . . . . . . . . . . . Slashing 29 | . . . 15 . . . . . . . . . . . . . . . . 7 . . . . . 7 Piercing 62 | . . . . . . 1 . . 11 . 20 6 5 . . . . . . . 14 . . . . 5 Sneak Attacks 14 | . . . . . . . . . . . 3 5 3 . . . . . . . 3 . . . . . Combat Hostiles . | . . . . . . . . . . . . . . . . . . . . . . . . . . . Follow-up Attacks . | . . . . . . . . . . . . . . . . . . . . . . . . . . . Damage Inflicted 45633 | 291 313 956 3011 106 . 608 848 . 389 . 429 326 765 . . 276 420 294 1218 6231 1276 2971 5691 5849 7467 5898 Guns 16047 | 291 313 296 426 . . . . . 175 . 27 . . . . 211 239 188 275 2279 388 356 1820 420 5864 2479 Cannons 13662 | . . 163 2191 106 . . . . . . . . . . . 40 . . . 701 201 2577 3371 3854 . 458 Explosions 12919 | . . 495 . . . 556 688 . . . . . 528 . . . 181 106 943 3096 . 38 500 1575 1603 2610 Melee 2954 | . . . 394 . . 52 160 . 214 . 395 326 237 . . . . . . 155 680 . . . . 341 Ramming 51 | . . 2 . . . . . . . . 7 . . . . 25 . . . . 7 . . . . 10 Kinetic 14864 | 291 313 296 609 106 . . . . . . . . . . . . . . . 1086 388 1527 1447 420 5864 2517 Thermal 11547 | . . 163 2008 . . . . . 175 . 27 . . . . . 112 . 126 1193 . 299 2671 4182 171 420 Explosive 8236 | . . . . . . 556 688 . . . . . 528 . . . . . . 3096 . . 173 1163 438 1594 Electromagnetic 5884 | . . . . . . . . . . . . . . . . 251 308 294 1092 . . 1145 700 84 994 1016 Impact 160 | . . . . . . . 160 . . . . . . . . . . . . . . . . . . . Slashing 792 | . . . 394 . . . . . . . . . . . . . . . . 155 . . . . . 243 Piercing 2002 | . . . . . . 52 . . 214 . 395 326 237 . . . . . . . 680 . . . . 98 Entropic 2097 | . . 495 . . . . . . . . . . . . . . . . . 701 201 . 700 . . . Highest Corruption 46 | . . 7 16 . . 8 11 11 5 5 . 6 6 3 9 1 7 16 46 46 . 10 24 3 15 15 Average Corruption 9 | . . 6 5 . . 8 9 11 4 5 . 3 5 3 3 1 6 14 28 46 . 7 9 2 8 8 Corruption Purged 5 | . . . . . . . . . . . . . . . . . . . . . . . 5 . . . Corruption Blocked . | . . . . . . . . . . . . . . . . . . . . . . . . . . . Effects 216 | . . 1 14 . . 6 3 1 1 1 . 6 1 . 4 2 4 13 28 2 . 8 51 14 51 5 Message Errors 47 | . . 1 3 . . 1 . . . . . 2 . . 1 1 1 3 7 . . 1 11 7 7 1 Matter Fused 43 | . . . 4 . . . . . . . . 2 . . . . . 3 3 . . 5 8 1 16 1 Heat Flow Errors 26 | . . . 1 . . 3 1 . . . . . . . 1 1 . 3 1 1 . 1 6 . 7 . Energy Discharges 24 | . . . 2 . . . . . 1 1 . . . . . . 2 . 4 . . 1 7 1 4 1 Parts Rejected 1 | . . . . . . . . . . . . . . . . . . . 1 . . . . . . . Parts Fused 1 | . . . . . . . . . . . . . . . . . . . . . . . . . 1 . Data Loss (minor) 29 | . . . 2 . . 1 1 1 . . . 1 1 . . . 1 1 8 . . . 5 1 6 . Data Loss (major) 10 | . . . 2 . . . . . . . . . . . . . . . . 1 . . 4 1 2 . Misfires 11 | . . . . . . 1 1 . . . . . . . 1 . . 2 . . . . 4 1 1 . Alerts 7 | . . . . . . . . . . . . 1 . . 1 . . 1 2 . . . 1 . . 1 Misdirections 1 | . . . . . . . . . . . . . . . . . . . . . . . . . 1 . Weapon Failures 16 | . . . . . . . . . . . . . . . . . . . 2 . . . 5 2 6 1 Overload Shots 1 | . . . . . . . . . . . . . . . . . . . . 1 . . . . . . Overflow Damage 1676 | . . 58 44 . . 64 56 . . . 38 10 167 . . . . . . 30 159 257 163 247 58 325 Projectiles 608 | . . . 41 . . . . . . . . . . . . . . . . 22 2 257 163 123 . . Explosions 524 | . . 58 . . . 64 2 . . . . . 28 . . . . . . 8 . . . 124 58 182 Melee 544 | . . . 3 . . . 54 . . . 38 10 139 . . . . . . . 157 . . . . 143 Knockbacks 17 | . . . 4 1 . . . . . . . . . . . . . . . . . 12 . . . . Impact . | . . . . . . . . . . . . . . . . . . . . . . . . . . . Kinetic 17 | . . . 4 1 . . . . . . . . . . . . . . . . . 12 . . . . Secondary . | . . . . . . . . . . . . . . . . . . . . . . . . . . . Self-Inflicted Damage 625 | . . . . . . 80 54 . . . 3 . 44 . . 11 . 95 60 13 3 . 44 . 64 154 Shots 22 | . . . . . . 2 1 . . . . . 2 . . . . 4 6 1 . . 1 . 1 4 Rammed 9 | . . 1 . . . . . . . . 1 . . . . 4 . . . . 1 . . . . 2 Targets Rammed 9 | . . 1 . . . . . . . . 1 . . . . 4 . . . . 1 . . . . 2 Kicked . | . . . . . . . . . . . . . . . . . . . . . . . . . . . Crushed . | . . . . . . . . . . . . . . . . . . . . . . . . . . . Highest Temperature 561 | . 138 411 315 89 . 234 197 . 324 267 6 188 48 . 126 561 288 325 333 185 . 194 479 515 191 339 Average Temperature 114 | . 61 162 70 58 . 90 76 . 104 102 4 67 12 . 51 228 102 141 134 28 . 105 134 186 34 128 Received Heat Transfer 5440 | . 36 303 567 90 12 27 18 . 280 . 48 9 33 . . 419 . 43 129 1138 87 184 425 . 351 1241 Effects 37 | . . 1 . . . . . . 4 . . . . . . 13 . . 3 . . . 2 13 . 1 Shutdowns 15 | . . 1 . . . . . . . . . . . . . 3 . . . . . . 1 10 . . Energy Bleed 4 | . . . . . . . . . 1 . . . . . . 2 . . 1 . . . . . . . Interference 10 | . . . . . . . . . 1 . . . . . . 6 . . 1 . . . . 2 . . Matter Decay 1 | . . . . . . . . . . . . . . . . 1 . . . . . . . . . . Short Circuit 5 | . . . . . . . . . 2 . . . . . . . . . 1 . . . 1 1 . . Damage (minor) 1 | . . . . . . . . . . . . . . . . . . . . . . . . . . 1 Damage (core) 1 | . . . . . . . . . . . . . . . . 1 . . . . . . . . . . Siege Activations 3 | . . . . . . . . . . . . . . . . . . . 1 1 . . . . 1 . Total Turns 94 | . . . . . . . . . . . . . . . . . . . 6 62 . . . . 26 . Longest Duration 62 | . . . . . . . . . . . . . . . . . . . 6 62 . . . . 26 . Martial Activations . | . . . . . . . . . . . . . . . . . . . . . . . . . . . Shielding Activations . | . . . . . . . . . . . . . . . . . . . . . . . . . . . Robots Disrupted 4 | . . . . . . . . . . . . . . . . 1 . . 1 . . 1 1 . . . Combat Hostiles 3 | . . . . . . . . . . . . . . . . 1 . . 1 . . . 1 . . . Robots Corrupted 21 | . . . . . . . . . . . . . . . . . . 1 6 . . 2 3 . 6 3 Combat Hostiles 21 | . . . . . . . . . . . . . . . . . . 1 6 . . 2 3 . 6 3 Parts Fried 48 | . . . . . . . . . . . . . . . . . 2 . 14 . . 9 8 . 11 4 Impact Corruptions 3 | . . . . . . . 3 . . . . . . . . . . . . . . . . . . . Robots Melted 10 | . . . 2 . . . . . . . . . . . . . . . . . . . 5 3 . . Combat Hostiles 8 | . . . 2 . . . . . . . . . . . . . . . . . . . 3 3 . . Parts Melted 26 | . . . 3 . . . . . . . . . . . . . 1 . . 4 . 1 8 8 . 1 Heat Transferred 12596 | . . 296 3293 . . . . . 222 . 37 . . . . . 148 . 185 1486 . 420 2609 3652 100 148 Parts Sabotaged . | . . . . . . . . . . . . . . . . . . . . . . . . . . . Parts Stolen . | . . . . . . . . . . . . . . . . . . . . . . . . . . . Parts Stripped 18 | . . . . . . . . . . . . . . . . . . . . . . . . . 18 . Power Chain Reactions 9 | . . . . . . . . . . . . . . . . . 2 1 . . . 1 . 2 1 2 Alert | -11 -10 -10 -10 -8 -7 -7 -7 -7 -7 -6 -6 -6 -6 -6 -5 -5 -4 -4 -4 -4 -3 -3 -3 -2 -2 -2 ------- Run | Yrd Mat Min Sub Mat Fac Low Low Zio Dee Pro Fac Low Low Dat Pro Fac Fac Upp Upp War Pro Res Tes Res Qua Sec Maximum Alert Level 5 | . . 2 . 1 1 . . . . . 2 . . . . . . . . . . 1 2 3 4 5 Low Security (%) 38 | 100 100 79 . 82 18 . . . . . 15 . . . . 100 100 . . . . 78 50 . . . Level 1 16 | . . . . 17 81 . . . . . 40 . . . . . . . . . . 21 37 15 19 . Level 2 21 | . . 19 . . . . . . . . 43 . . . . . . . . . . . 12 64 24 . Level 3 11 | . . . . . . . . . . . . . . . . . . . . . . . . 20 24 30 Level 4 10 | . . . . . . . . . . . . . . . . . . . . . . . . . 31 53 Level 5 . | . . . . . . . . . . . . . . . . . . . . . . . . . . . High Security . | . . . . . . . . . . . . . . . . . . . . . . . . . . . Max Security 1 | . . . . . . . . . . . . . . . . . . . . . . . . . . 15 Peak Influence 2207 | 10 85 687 . 200 272 . . . . . 631 . . . . 65 106 . . . . 347 525 1078 1379 2207 Initial 768 | . . 28 . 129 91 . . . . . 631 . . . . . 31 . . . . . 162 285 600 768 Average 454 | 1 28 159 . 145 225 . . . . . 397 . . . . 8 31 . . . . 103 221 627 800 1245 Influence Increases 10978 | 35 215 933 785 91 192 90 170 . . 60 691 . 85 . . 161 125 100 310 613 90 531 911 1371 1765 1654 Destroy 0b10 Robot/C 5160 | . 180 220 640 20 . 80 140 . . . . . 40 . . 20 80 100 240 540 60 240 520 620 640 780 Destroy 0b10 Robot/NC 270 | 35 5 15 . . . . . . . . 20 . . . . 5 10 . . 20 . 15 35 . 65 45 Destroy Leader 660 | . 30 30 30 10 . 10 30 . . . . . . . . . 10 . 40 . . 40 72 130 94 134 Allied During Kill 321 | . . 12 25 . . . . . . . . . . . . . . . . 23 . . . 7 . 254 Successful Hack 86 | . . . . . . . . . . . 7 . . . . 16 . . . . . 24 . . 12 27 Disable Machine 510 | . . . . . . . . . . . 45 . . . . . . . . . . 15 75 15 210 150 Anti-Garrison Action 150 | . . . . . . . . . . . . . . . . . . . . . . . . 150 . . Destroy Structure 940 | . . 30 . 1 1 . . . . . 4 . . . . . 10 . . . . 16 134 177 459 108 Advance Influence 600 | . . . . . . . . . . . 600 . . . . . . . . . . . . . . . Partial Spotted 30 | . . . . . 15 . . . . . . . . . . . . . . . . . 15 . . . Lose Combat Pursuer 675 | . . . 90 60 . . . . . 60 15 . 45 . . 120 15 . 30 30 30 15 60 30 45 30 Miscellaneous 1576 | . . 626 . . 176 . . . . . . . . . . . . . . . . 166 . 242 240 126 Influence Decreases 9252 | 35 140 327 1217 140 159 267 81 145 . 10 637 104 85 . . 96 190 100 274 434 305 243 690 812 1466 1295 Entered New Map 2635 | . . 47 355 120 109 87 11 145 . . 19 40 . . . . 34 . . 36 215 . 126 224 468 599 Time Decay 4557 | 35 140 270 702 20 50 180 60 . . 10 198 64 85 . . 60 156 60 224 108 46 233 464 538 568 286 Search Patrol Dispatched 100 | . . . . . . . . . . . 100 . . . . . . . . . . . . . . . Lost Part 1119 | . . 10 140 . . . 10 . . . 20 . . . . 35 . 20 50 170 44 10 100 30 130 350 Lost Ally 241 | . . . 20 . . . . . . . . . . . . 1 . 20 . 120 . . . 20 . 60 Purge Threat 600 | . . . . . . . . . . . 300 . . . . . . . . . . . . . 300 . Squads Dispatched 64 | . 3 3 . 3 . . . . . . 1 . . . . 3 . . . . . 1 10 4 9 27 Investigation 7 | . . 2 . 1 . . . . . . . . . . . 1 . . . . . . 1 2 . . Extermination 11 | . . . . . . . . . . . 1 . . . . . . . . . . 1 4 . 3 2 Reinforcement 18 | . 3 . . 2 . . . . . . . . . . . . . . . . . . 4 2 2 5 Assault 24 | . . 1 . . . . . . . . . . . . . 2 . . . . . . 1 . 4 16 Garrison 3 | . . . . . . . . . . . . . . . . . . . . . . . . . . 3 Intercept 1 | . . . . . . . . . . . . . . . . . . . . . . . . . . 1 Searches Triggered 1 | . . . . . . . . . . . 1 . . . . . . . . . . . . . . . Data Miner Redirects 2 | . . . . . . . . . . . . . . . . . . . . . . . . . 2 . Construction Impeded . | . . . . . . . . . . . . . . . . . . . . . . . . . . . Haulers Reinforced . | . . . . . . . . . . . . . . . . . . . . . . . . . . . Active Scanning Responses . | . . . . . . . . . . . . . . . . . . . . . . . . . . . Cargo Convoy Interrupts . | . . . . . . . . . . . . . . . . . . . . . . . . . . . Stealth | -11 -10 -10 -10 -8 -7 -7 -7 -7 -7 -6 -6 -6 -6 -6 -5 -5 -4 -4 -4 -4 -3 -3 -3 -2 -2 -2 --------- Run | Yrd Mat Min Sub Mat Fac Low Low Zio Dee Pro Fac Low Low Dat Pro Fac Fac Upp Upp War Pro Res Tes Res Qua Sec Distress Signals 20 | . . . . . . . . . . . . . . . . . . . . 1 . . 2 11 4 2 Communications Jammed 40 | . . . . . . . . . . . . . . . . 1 . . . . 20 5 14 . . . Distress Signals 17 | . . . . . . . . . . . . . . . . 1 . . . . . 2 14 . . . Times Spotted 572 | . 14 12 50 16 1 2 6 . 23 11 6 7 6 . 1 23 3 5 16 59 11 15 45 47 62 131 Peak Tracking Total 41 | . 4 3 4 15 2 2 3 . 41 7 2 8 3 . 1 13 4 5 4 18 4 3 6 6 10 39 Tactical Retreats 34 | . . . 3 1 . . . . . 1 1 . 1 . . 4 1 . 1 1 1 2 9 2 4 2 ECM-based Alert Blocks 17 | . . . . . . . . . . . . . . . . . . . . . . 1 7 . 9 . Traps | -11 -10 -10 -10 -8 -7 -7 -7 -7 -7 -6 -6 -6 -6 -6 -5 -5 -4 -4 -4 -4 -3 -3 -3 -2 -2 -2 ------- Run | Yrd Mat Min Sub Mat Fac Low Low Zio Dee Pro Fac Low Low Dat Pro Fac Fac Upp Upp War Pro Res Tes Res Qua Sec Traps Triggered 12 | . . . 2 . . . 1 . . . . 1 . . . 1 5 . . . . . 1 . . 1 Indirectly 5 | . . . . . . . . . . . . . . . . . 4 . . . . . . . . 1 Trap Hack Attempts . | . . . . . . . . . . . . . . . . . . . . . . . . . . . Triggered . | . . . . . . . . . . . . . . . . . . . . . . . . . . . Disarmed . | . . . . . . . . . . . . . . . . . . . . . . . . . . . Reprogrammed . | . . . . . . . . . . . . . . . . . . . . . . . . . . . Reused . | . . . . . . . . . . . . . . . . . . . . . . . . . . . Traps Extracted . | . . . . . . . . . . . . . . . . . . . . . . . . . . . Installed . | . . . . . . . . . . . . . . . . . . . . . . . . . . . Triggered . | . . . . . . . . . . . . . . . . . . . . . . . . . . . Machines | -11 -10 -10 -10 -8 -7 -7 -7 -7 -7 -6 -6 -6 -6 -6 -5 -5 -4 -4 -4 -4 -3 -3 -3 -2 -2 -2 ---------- Run | Yrd Mat Min Sub Mat Fac Low Low Zio Dee Pro Fac Low Low Dat Pro Fac Fac Upp Upp War Pro Res Tes Res Qua Sec Machines Disabled 44 | . . . 2 . . . . . . . 3 . . . . . . . . . . 1 6 2 17 13 Max in Single Turn 2 | . . . 1 . . . . . . . 1 . . . . . . . . . . 1 1 1 2 2 Garrison Access 3 | . . . . . . . . . . . . . . . . 1 . . . . . . . 2 . . Machines Repaired . | . . . . . . . . . . . . . . . . . . . . . . . . . . . Machines Dismantled . | . . . . . . . . . . . . . . . . . . . . . . . . . . . Machines Sabotaged . | . . . . . . . . . . . . . . . . . . . . . . . . . . . Overloaded Fab Kills . | . . . . . . . . . . . . . . . . . . . . . . . . . . . Hacking | -11 -10 -10 -10 -8 -7 -7 -7 -7 -7 -6 -6 -6 -6 -6 -5 -5 -4 -4 -4 -4 -3 -3 -3 -2 -2 -2 --------- Run | Yrd Mat Min Sub Mat Fac Low Low Zio Dee Pro Fac Low Low Dat Pro Fac Fac Upp Upp War Pro Res Tes Res Qua Sec Machines Accessed 45 | . . 1 2 1 2 . . . . . 5 . 1 3 . 3 . . . 4 . 3 5 2 10 3 Terminals 22 | . . . . . . . . . . . 1 . . . . . . . . . . 3 4 1 10 3 Fabricators 5 | . . . . . 1 . . . . . 1 . . . . 2 . . . . . . . 1 . . Repair Stations . | . . . . . . . . . . . . . . . . . . . . . . . . . . . Recycling Units 3 | . . . . . . . . . . . 3 . . . . . . . . . . . . . . . Scanalyzers 2 | . . . . 1 . . . . . . . . . . . . . . . . . . 1 . . . Garrison Access 2 | . . . . . 1 . . . . . . . . . . 1 . . . . . . . . . . Total Hacks 95 | . . 1 6 3 2 . . . . . 14 . 1 24 . 5 . . . 6 . 4 7 5 13 4 Successful 54 | . . 1 6 2 . . . . . . 3 . 1 24 . 1 . . . 6 . 1 1 . 6 2 Failed 41 | . . . . 1 2 . . . . . 11 . . . . 4 . . . . . 3 6 5 7 2 Catastrophic 11 | . . . . . 1 . . . . . 3 . . . . 2 . . . . . 2 1 . 1 1 Database Lockouts . | . . . . . . . . . . . . . . . . . . . . . . . . . . . Manual 32 | . 1 . . . 1 . . 5 . . 6 . . . . 3 . . . 1 . . 2 5 8 . Terminals 31 | . . . . . . . . . . . 3 . . . . . . . . . . 4 5 2 13 4 Fabricators 11 | . . . . . 1 . . . . . 4 . . . . 3 . . . . . . . 3 . . Repair Stations . | . . . . . . . . . . . . . . . . . . . . . . . . . . . Recycling Units 7 | . . . . . . . . . . . 7 . . . . . . . . . . . . . . . Scanalyzers 5 | . . . . 3 . . . . . . . . . . . . . . . . . . 2 . . . Garrison Access 3 | . . . . . 1 . . . . . . . . . . 2 . . . . . . . . . . Terminal Hacks 48 | . . 1 6 . . . . . . . . . 1 24 . . . . . 6 . 1 1 . 6 2 Record 17 | . . . 5 . . . . . . . . . . 6 . . . . . 5 . . . . 1 . Part Schematic 11 | . . . . . . . . . . . . . . 11 . . . . . . . . . . . . Robot Schematic 4 | . . . . . . . . . . . . . . 4 . . . . . . . . . . . . Prototype ID Bank 3 | . . . . . . . . . . . . . . 3 . . . . . . . . . . . . Open Door 5 | . . 1 . . . . . . . . . . 1 . . . . . . 1 . . . . 2 . Level Access Points 1 | . . . . . . . . . . . . . . . . . . . . . . . . . . 1 Terminal Index 1 | . . . . . . . . . . . . . . . . . . . . . . 1 . . . . Unreport Threat 2 | . . . . . . . . . . . . . . . . . . . . . . . . . 2 . Zone Layout 1 | . . . . . . . . . . . . . . . . . . . . . . . . . 1 . Proto ID Catalog 1 | . . . 1 . . . . . . . . . . . . . . . . . . . . . . . Protovariant Controls 1 | . . . . . . . . . . . . . . . . . . . . . . . 1 . . . Activate Exoskeleton 1 | . . . . . . . . . . . . . . . . . . . . . . . . . . 1 Fabricator Hacks 1 | . . . . . . . . . . . 1 . . . . . . . . . . . . . . . Network Status 1 | . . . . . . . . . . . 1 . . . . . . . . . . . . . . . Repair Station Hacks . | . . . . . . . . . . . . . . . . . . . . . . . . . . . Recycling Unit Hacks 1 | . . . . . . . . . . . 1 . . . . . . . . . . . . . . . Retrieve Components 1 | . . . . . . . . . . . 1 . . . . . . . . . . . . . . . Scanalyzer 2 | . . . . 2 . . . . . . . . . . . . . . . . . . . . . . Retrieve Study 2 | . . . . 2 . . . . . . . . . . . . . . . . . . . . . . Garrison Access Hacks . | . . . . . . . . . . . . . . . . . . . . . . . . . . . Unauthorized Hacks 2 | . . . . . . . . . . . 1 . . . . 1 . . . . . . . . . . Terminals . | . . . . . . . . . . . . . . . . . . . . . . . . . . . Fabricators 2 | . . . . . . . . . . . 1 . . . . 1 . . . . . . . . . . Fabnet 2 | . . . . . . . . . . . 1 . . . . 1 . . . . . . . . . . Repair Stations . | . . . . . . . . . . . . . . . . . . . . . . . . . . . Recycling Units . | . . . . . . . . . . . . . . . . . . . . . . . . . . . Scanalyzers . | . . . . . . . . . . . . . . . . . . . . . . . . . . . Garrison Access . | . . . . . . . . . . . . . . . . . . . . . . . . . . . Data Cores Recovered 1 | . . . . . . . . . . . . . . . . . . . . . . . . . 1 . Used . | . . . . . . . . . . . . . . . . . . . . . . . . . . . Hacking Detections 22 | . . . . . 2 . . . . . 5 . . . . 3 . . . . . 3 3 1 3 2 Full Trace Events 3 | . . . . . . . . . . . . . . . . 1 . . . . . . 1 1 . . Feedback Events 1 | . . . . . . . . . . . . . . . . 1 . . . . . . . . . . Corruption 1 | . . . . . . . . . . . . . . . . 1 . . . . . . . . . . Feedback Blocked . | . . . . . . . . . . . . . . . . . . . . . . . . . . . Robot Schematics Acquired 8 | . . . . . . . . 3 . . . . . 4 . . . . . . . . 1 . . . Robots Built . | . . . . . . . . . . . . . . . . . . . . . . . . . . . Authchips . | . . . . . . . . . . . . . . . . . . . . . . . . . . . Time . | . . . . . . . . . . . . . . . . . . . . . . . . . . . Total Robot Build Rating . | . . . . . . . . . . . . . . . . . . . . . . . . . . . Part Schematics Acquired 32 | . . . . . . . . 16 . . . . . 11 . . . . . . . . 2 . . 3 Parts Built . | . . . . . . . . . . . . . . . . . . . . . . . . . . . Authchips . | . . . . . . . . . . . . . . . . . . . . . . . . . . . Time . | . . . . . . . . . . . . . . . . . . . . . . . . . . . Total Part Build Rating . | . . . . . . . . . . . . . . . . . . . . . . . . . . . Part Studies Acquired 2 | . . . . 2 . . . . . . . . . . . . . . . . . . . . . . Parts Repaired . | . . . . . . . . . . . . . . . . . . . . . . . . . . . Time . | . . . . . . . . . . . . . . . . . . . . . . . . . . . Parts Recycled . | . . . . . . . . . . . . . . . . . . . . . . . . . . . Recycled Matter . | . . . . . . . . . . . . . . . . . . . . . . . . . . . Retrieved Matter . | . . . . . . . . . . . . . . . . . . . . . . . . . . . Retrieved Components 2 | . . . . . . . . . . . 2 . . . . . . . . . . . . . . . Parts Scanalyzed . | . . . . . . . . . . . . . . . . . . . . . . . . . . . Part Schematics Acquired . | . . . . . . . . . . . . . . . . . . . . . . . . . . . Parts Damaged . | . . . . . . . . . . . . . . . . . . . . . . . . . . . Bothacking | -11 -10 -10 -10 -8 -7 -7 -7 -7 -7 -6 -6 -6 -6 -6 -5 -5 -4 -4 -4 -4 -3 -3 -3 -2 -2 -2 ------------ Run | Yrd Mat Min Sub Mat Fac Low Low Zio Dee Pro Fac Low Low Dat Pro Fac Fac Upp Upp War Pro Res Tes Res Qua Sec Used RIF Installer . | . . . . . . . . . . . . . . . . . . . . . . . . . . . Robots Hacked 6 | . . . . . . . . . 1 . . . . . . . . 1 . 4 . . . . . . Non-combat . | . . . . . . . . . . . . . . . . . . . . . . . . . . . Combat 6 | . . . . . . . . . 1 . . . . . . . . 1 . 4 . . . . . . Robot Hacks Applied 1 | . . . . . . . . . 1 . . . . . . . . . . . . . . . . . parse_system 1 | . . . . . . . . . 1 . . . . . . . . . . . . . . . . . Relay Couplers Released 4 | . . . . . . . . . . . . . . . . 2 . . . . . . . 2 . . Machine Destruction 4 | . . . . . . . . . . . . . . . . 2 . . . . . . . 2 . . Fabnet Peak Effective % 3 | . . . . . . . . . . . . . . . . . 3 3 3 3 1 1 1 . . . Autooverrided 5 | . . . . . . . . . . . . . . . . . . 1 . 4 . . . . . . Robots Rewired 3 | . . . . . . . . . . . . . . . . 2 . . . . . . . 1 . . Allies Hacked . | . . . . . . . . . . . . . . . . . . . . . . . . . . . Hacks Repelled . | . . . . . . . . . . . . . . . . . . . . . . . . . . . Allies | -11 -10 -10 -10 -8 -7 -7 -7 -7 -7 -6 -6 -6 -6 -6 -5 -5 -4 -4 -4 -4 -3 -3 -3 -2 -2 -2 -------- Run | Yrd Mat Min Sub Mat Fac Low Low Zio Dee Pro Fac Low Low Dat Pro Fac Fac Upp Upp War Pro Res Tes Res Qua Sec Total Allies 31 | . . 5 5 . . . . 2 . . 2 . . . . 2 . 1 . 8 . . . 1 . 5 Largest Group 5 | . . 4 5 . . . . 2 2 . 2 1 . . . 1 . 1 . 3 . . . 1 . 3 Highest-Rated Group 1505 | . . 85 40 . . . . 192 192 . 52 26 . . . 30 . 12 . 148 . . . 89 . 1505 Highest-Rated Ally 1204 | . . 85 8 . . . . 96 96 . 26 26 . . . 30 . 12 . 148 . . . 89 . 1204 Total Orders 8 | . . . . . . . . . . . 5 . . . . 1 2 . . . . . . . . . EXPLORE 1 | . . . . . . . . . . . . . . . . . 1 . . . . . . . . . RETURN 7 | . . . . . . . . . . . 5 . . . . 1 1 . . . . . . . . . Ally Attacks 197 | . . 24 20 . . . . . 31 . . . . . . 4 . 3 . 39 . . . 1 . 75 Total Damage 7737 | . . 228 182 . . . . . 714 . . . . . . 99 . 28 . 1378 . . . . . 5108 Kills 38 | . . 5 6 . . . . . 5 . . . . . . . . . . 6 . . . . . 16 Allies Corrupted . | . . . . . . . . . . . . . . . . . . . . . . . . . . . Allies Melted 1 | . . . . . . . . . . . . . . . . . . . . 1 . . . . . . X0-1V1 Amusement Gains 532 | . 9 . 26 10 6 7 . . 35 . 3 5 38 . 1 22 5 25 15 100 10 . 84 30 56 45 Good Acts 182 | . 4 33 45 . 1 3 1 . . 1 6 1 14 . 2 2 5 . 6 15 6 2 8 7 8 12 Bad Acts 166 | . 3 31 35 2 2 5 2 . . 2 3 7 10 . 3 2 2 1 1 1 4 8 11 11 12 8 Intel | -11 -10 -10 -10 -8 -7 -7 -7 -7 -7 -6 -6 -6 -6 -6 -5 -5 -4 -4 -4 -4 -3 -3 -3 -2 -2 -2 ------- Run | Yrd Mat Min Sub Mat Fac Low Low Zio Dee Pro Fac Low Low Dat Pro Fac Fac Upp Upp War Pro Res Tes Res Qua Sec Active Infowar (turns) 10918 | 10 113 . . . . 85 128 115 236 . 376 484 1657 48 255 228 507 307 273 222 80 745 1172 1433 1710 734 Optics 4076 | . . . . . . . . . . . 374 484 597 . . . . . . . . . . 177 1710 734 IFF 634 | . . . . . . . . . . . 209 . . . . . . . . . . . 55 . 253 117 Terrain 328 | . . . . . . 85 128 115 . . . . . . . . . . . . . . . . . . Seismic 123 | 10 113 . . . . . . . . . . . . . . . . . . . . . . . . . Decoding 1554 | . . . . . . . . . 27 . . . . . . 218 507 307 273 222 . . . . . . Triangulation 41 | . . . . . . . . . . . 41 . . . . . . . . . . . . . . . Cloaking 1205 | . . . . . . . . . 209 . . . . . . . . . . . . 626 370 . . . Jamming 5161 | . . . . . . . . . . . . . 1060 48 255 183 362 . . . 80 745 1172 1256 . . ECM 1364 | . . . . . . . . . . . . . . . . . 14 . . . . 348 496 . 506 . Robot Analysis Total . | . . . . . . . . . . . . . . . . . . . . . . . . . . . Derelict Logs Recovered 16 | . . 2 1 . . 2 1 1 . 1 . 2 1 . 2 . . 2 1 . . . . . . . Drone Launches 7 | . . . . . . . . . . . 5 . . . . 1 1 . . . . . . . . . Drone Recoveries 7 | . . . . . . . . . . . 5 . . . . 1 1 . . . . . . . . . Decoded 0b10 Intel 34 | . . . . . . . . . . . . . . . . 11 23 . . . . . . . . . Traps 8 | . . . . . . . . . . . . . . . . 2 6 . . . . . . . . . Emergency Access 7 | . . . . . . . . . . . . . . . . 2 5 . . . . . . . . . Patrols 16 | . . . . . . . . . . . . . . . . 7 9 . . . . . . . . . Guards 2 | . . . . . . . . . . . . . . . . . 2 . . . . . . . . . Exits 1 | . . . . . . . . . . . . . . . . . 1 . . . . . . . . . Exploration | -11 -10 -10 -10 -8 -7 -7 -7 -7 -7 -6 -6 -6 -6 -6 -5 -5 -4 -4 -4 -4 -3 -3 -3 -2 -2 -2 ------------- Run | Yrd Mat Min Sub Mat Fac Low Low Zio Dee Pro Fac Low Low Dat Pro Fac Fac Upp Upp War Pro Res Tes Res Qua Sec Turns Passed 20003 | 183 371 959 3026 47 106 376 128 225 446 63 416 484 3291 48 255 239 507 307 652 1527 451 745 1176 1525 1710 740 Spaces Moved 12074 | 69 152 556 1705 82 237 361 452 909 479 202 605 239 449 74 257 244 215 188 311 902 247 453 622 858 843 363 Core 151 | 15 . . . . . . . . . . . . . . . . . . . . . . . . . 136 Treads 1909 | 54 152 556 75 . . . . . . . . . . . . . 171 188 310 192 . . . . 91 120 Legs 4551 | . . . 1119 . . . . . . . . . . . . . 22 . 1 710 8 429 622 858 752 30 Wheels 511 | . . . 511 . . . . . . . . . . . . . . . . . . . . . . . Hover 1993 | . . . . . . . . . 42 . 326 239 449 74 257 244 22 . . . 239 24 . . . 77 Flight 2959 | . . . . 82 237 361 452 909 437 202 279 . . . . . . . . . . . . . . . Fastest Speed 21 | 50 160 145 105 40 40 21 21 21 21 24 24 38 38 65 65 61 61 152 152 90 57 60 111 106 106 48 Average Speed 95 | 136 160 152 144 40 40 54 21 21 31 24 46 44 56 65 65 64 140 152 159 131 59 109 113 122 116 109 Slowest Speed 470 | 160 160 160 260 40 40 101 21 21 109 24 66 66 142 65 67 74 160 152 232 190 190 112 116 131 240 470 Overloaded Moves . | . . . . . . . . . . . . . . . . . . . . . . . . . . . Propulsion Burnouts . | . . . . . . . . . . . . . . . . . . . . . . . . . . . Robots Hopped 11 | . . . . 5 . . . . 1 . 5 . . . . . . . . . . . . . . . Potential Cave-ins 14 | . . 12 . . . . . . . . . . . . . . . . . . . . . . 2 . Cave-ins Triggered 1 | . . . . . . . . . . . . . 1 . . . . . . . . . . . . . Teleports 19 | . . . . . . . . . . . . . . . . . . . . . . . . . . 19 Exploration Rate (%) 51 | 4 39 99 95 18 8 68 67 86 57 39 23 65 76 69 46 13 5 46 61 91 45 15 74 39 91 42 Regions Visited 26 Branch Regions 18 Pre-discovered Areas 7 | . . . 1 . . . . 1 . 1 . . . 1 1 . . . . 2 . . . . . . Known Exits Taken 16 | . . 1 1 1 1 1 . . . 1 . 1 1 . 1 1 1 . 1 1 1 1 . . 1 . Unknown Exits Taken 10 | 1 1 . . . . . 1 1 1 . 1 . . 1 . . . 1 . . . . 1 1 . . Scrap Searched 21 | . . 1 5 . . 2 2 2 . 1 . . 2 . 4 . . . . . 2 . . . . . Spaces Dug 34 | . . . 4 . 1 . . . . . 4 1 . . . . 1 . 1 2 1 1 6 7 4 1 Terrain Destroyed 829 | . . 17 22 1 1 75 100 . 2 2 4 3 63 . . . 4 3 4 48 18 7 72 124 226 33 Melee 6 | . . . . . 1 . . . . . 3 1 . . . . . . . . 1 . . . . . Projectile 391 | . . 1 22 1 . . . . 2 2 1 2 . . . . 2 . 4 29 17 7 59 67 166 9 AOE 430 | . . 16 . . . 75 100 . . . . . 63 . . . 2 3 . 19 . . 13 57 60 22 Terrain Rammed . | . . . . . . . . . . . . . . . . . . . . . . . . . . . Walls Destroyed . | . . . . . . . . . . . . . . . . . . . . . . . . . . . Machines Disabled . | . . . . . . . . . . . . . . . . . . . . . . . . . . . Actions | -11 -10 -10 -10 -8 -7 -7 -7 -7 -7 -6 -6 -6 -6 -6 -5 -5 -4 -4 -4 -4 -3 -3 -3 -2 -2 -2 --------- Run | Yrd Mat Min Sub Mat Fac Low Low Zio Dee Pro Fac Low Low Dat Pro Fac Fac Upp Upp War Pro Res Tes Res Qua Sec Total 19035 | 113 245 623 1975 86 246 536 465 939 753 214 697 604 3474 74 343 299 399 199 425 1131 505 606 944 1217 1369 554 Wait 4906 | . 65 11 13 . 2 152 . 23 207 5 27 352 2992 . 83 9 139 . 61 56 205 33 64 118 264 25 Move 12029 | 68 151 555 1704 73 236 360 451 908 476 201 595 238 448 73 256 243 214 187 310 901 246 452 621 857 842 363 Hop 9 | . . . . 3 . . . . 1 . 5 . . . . . . . . . . . . . . . Pick Up 285 | 10 5 9 27 . 4 7 . 2 15 . 6 3 9 . 1 6 9 1 5 35 2 18 29 33 34 15 Fast Attach 137 | . . 1 5 . . . . 2 1 1 12 . 3 . 1 1 5 . . 22 3 19 23 14 15 9 Attach 179 | 7 2 1 17 1 2 6 . 1 17 3 6 3 2 . . 9 8 2 7 17 9 7 7 8 14 23 Detach 25 | . . . . . 1 . . . 5 1 5 . . . . . 1 . 1 1 3 1 . 2 1 3 Swap 192 | . 1 3 5 . . . . . 3 . 7 . . . . 1 6 2 6 4 . 5 50 54 34 11 Drop 304 | . . 9 37 3 . 5 1 1 8 1 11 2 10 1 1 2 5 . 3 35 1 12 46 49 44 17 Fire 835 | 28 21 31 149 6 . 5 8 . 9 2 4 . 5 . 1 13 12 7 32 53 21 59 101 81 116 71 Melee 98 | . . . 15 . 1 1 5 1 11 . 19 6 5 . . . . . . 7 14 . . . 1 12 Ram 7 | . . . . . . . . . . . . . . . . 4 . . . . 1 . . . . 2 Kick . | . . . . . . . . . . . . . . . . . . . . . . . . . . . Crush 1 | . . 1 . . . . . . . . . . . . . . . . . . . . . . . . Escape Stasis 6 | . . 2 . . . . . . . . . . . . . . . . . . . . 1 . . 3 Rewire 12 | . . . . . . . . 1 . . . . . . . 11 . . . . . . . . . . Trap . | . . . . . . . . . . . . . . . . . . . . . . . . . . . Miscellaneous 10 | . . . 3 . . . . . . . . . . . . . . . . . . . 2 1 4 . Route ------- -11/Scrapyard -10/Materials (discovered 2 exits: *Min / *Sub) -10/Mines (discovered 3 exits: [*Mat x2] / *Sub) -10/Subcaves (discovered 2 exits: *Mat / *Rec) -8/Materials -7/Factory (discovered 4 exits: Fac x2 / Sto / *Low) -7/Lower Caves -7/Lower Caves -7/Zion (discovered 2 exits: [*Dee] / [*Pro]) -7/Deep Caves -6/Proximity Caves -6/Factory (discovered 2 exits: Fac / [*Low]) -6/Lower Caves -6/Lower Caves (discovered 2 exits: Fac / *Dat) -6/Data Miner -5/Proximity Caves -5/Factory (discovered 5 exits: *Fac x3 / Upp x2) -4/Factory (discovered 2 exits: Res / *Upp) -4/Upper Caves -4/Upper Caves (discovered 2 exits: *Res / *War) -4/Warlord -3/Proximity Caves -3/Research (discovered 2 exits: *Tes x2) -3/Testing -2/Research (discovered 3 exits: *Acc x2 / *Qua) -2/Quarantine (discovered 3 exits: *Acc / *Sec / *Frg) -2/Section 7 History --------- Turn | Location | Event 5 | -11/Scrapyard | Discovered new exit (range 15) 184 | -11/Scrapyard | Entered Materials 287 | -10/Materials | Discovered new exit (range 9) 296 | -10/Materials | Prayed at D.C.S.S. Altar Unit 318 | -10/Materials | Build established: Mutant 360 | -10/Materials | Energy capacity permanently improved by X0-1V1 (+200; -100 max core) 362 | -10/Materials | X0-1V1 activates XOMVISION 399 | -10/Materials | X0-1V1 sent someone to keep an eye on you 407 | -10/Materials | X0-1V1 sent you into danger 492 | -10/Materials | Weapon slot count temporarily expanded by X0-1V1 (+2) 514 | -10/Materials | Discovered new exit (range 15) 555 | -10/Materials | Entered Mines 572 | -10/Mines | Discovered new exit (range 10) 764 | -10/Mines | Learned 8 Materials zone layouts 777 | -10/Mines | Core integrity restored by X0-1V1 (+27) 799 | -10/Mines | Core integrity permanently improved by X0-1V1 (+250) 801 | -10/Mines | Build established: Gunner 849 | -10/Mines | Discovered new exit (range 3) 985 | -10/Mines | Met a Derelict shopkeep closing up shop 1004 | -10/Mines | X0-1V1 activates XOMVISION 1006 | -10/Mines | Identified exit to Subcaves 1006 | -10/Mines | X0-1V1 revealed exit location to -10/Subcaves 1021 | -10/Mines | X0-1V1 added 0b10 threat records associated with you (minor) 1033 | -10/Mines | X0-1V1 vaporized surrounding terrain (radius 16) 1086 | -10/Mines | X0-1V1 sent you into danger 1096 | -10/Mines | X0-1V1 sent allied B-75 Beast (x1) 1134 | -10/Mines | X0-1V1 mutated your Propulsion slot to Power slot 1157 | -10/Mines | Build established: Mutant 1243 | -10/Mines | X0-1V1 activates XOMVISION 1295 | -10/Mines | X0-1V1 vaporized surrounding terrain (radius 16) 1320 | -10/Mines | X0-1V1 added 0b10 threat records associated with you (major) 1335 | -10/Mines | X0-1V1 sent allied G-34 Mercenary (x4) 1347 | -10/Mines | X0-1V1 mutated your Weapon slot to Propulsion slot 1355 | -10/Mines | X0-1V1 rewrote G-34 Mercenary IFF filter 1361 | -10/Mines | X0-1V1 sent you into danger 1400 | -10/Mines | Core integrity restored by X0-1V1 (+76) 1426 | -10/Mines | A weapon hastily lodged in a ceiling crevice suddenly fell to the ground 1448 | -10/Mines | X0-1V1 added 0b10 threat records associated with you (considerable) 1477 | -10/Mines | X0-1V1 mutated your Propulsion slot to Utility slot 1514 | -10/Mines | Entered Subcaves 1514 | -10/Subcaves | Accompanied by 2 allies 1516 | -10/Subcaves | Weapon slot count permanently improved by X0-1V1 (+1) 1520 | -10/Subcaves | Identified exit to Materials 1520 | -10/Subcaves | X0-1V1 revealed exit location to -8/Materials 1531 | -10/Subcaves | X0-1V1 rewrote G-34 Mercenary IFF filter 1589 | -10/Subcaves | Core integrity restored by X0-1V1 (+100) 1636 | -10/Subcaves | Identified exit to Recycling 1636 | -10/Subcaves | X0-1V1 revealed exit location to -7/Recycling 1682 | -10/Subcaves | X0-1V1 mutated your Utility slot to Propulsion slot 1727 | -10/Subcaves | X0-1V1 revealed exit location to -8/Materials 1732 | -10/Subcaves | X0-1V1 activates XOMVISION 1745 | -10/Subcaves | X0-1V1 sent hostile S-10 Pest (x4) 1749 | -10/Subcaves | X0-1V1 sent allied G-34 Mercenary (x5) 1773 | -10/Subcaves | X0-1V1 rewrote G-34 Mercenary IFF filter 1954 | -10/Subcaves | Visited Clippyterm 1956 | -10/Subcaves | X0-1V1 activates XOMVISION 1960 | -10/Subcaves | Learned location of Deep Caves (-7) 1960 | -10/Subcaves | Learned 40 Factory zone layouts 2027 | -10/Subcaves | X0-1V1 rewrote G-34 Mercenary IFF filter 2130 | -10/Subcaves | X0-1V1 rewrote G-34 Mercenary IFF filter 2140 | -10/Subcaves | System corruption reached 10% 2161 | -10/Subcaves | X0-1V1 tapped a No Entrance sign 2233 | -10/Subcaves | X0-1V1 rewrote G-34 Mercenary IFF filter 2303 | -10/Subcaves | X0-1V1 sent hostile G-34 Mercenary (x3) 2312 | -10/Subcaves | A swath of the cavern ceiling suddenly collapsed 2415 | -10/Subcaves | Lost 3 parts (1p1n1u) 2564 | -10/Subcaves | X0-1V1 sent hostile G-34 Mercenary (x3) 2583 | -10/Subcaves | Core integrity fell below 50% 2611 | -10/Subcaves | Lost 4 parts (2n2w) 2888 | -10/Subcaves | Shifting Twisted Machinery released Mak. Hacking Suite 2919 | -10/Subcaves | X0-1V1 mutated your Propulsion slot to Utility slot 3007 | -10/Subcaves | Shifting Twisted Machinery released Battle Rifle 3185 | -10/Subcaves | Build established: Subdweller-Mutant 3224 | -10/Subcaves | X0-1V1 sent you into danger 3235 | -10/Subcaves | X0-1V1 mutated your Utility slot to Propulsion slot 3243 | -10/Subcaves | X0-1V1 sent hostile S-10 Pest (x3) 3251 | -10/Subcaves | X0-1V1 whisked you away to safety 3251 | -10/Subcaves | X0-1V1 activates XOMVISION 3276 | -10/Subcaves | Core integrity restored by X0-1V1 (+112) 3374 | -10/Subcaves | Core integrity restored by X0-1V1 (+112) 3437 | -10/Subcaves | Shifting Twisted Machinery released Sub. Optics 3451 | -10/Subcaves | Shifting Twisted Machinery released Multitool 3596 | -10/Subcaves | Visited 4L-MR0's lab 3601 | -10/Subcaves | Learned Materials terminal intel 3609 | -10/Subcaves | Found Prototype Device 3617 | -10/Subcaves | Found Flightbrick 3904 | -10/Subcaves | Build established: Mutant 3931 | -10/Subcaves | Identified Sfc. Transmogrifier 4246 | -10/Subcaves | Shifting Twisted Machinery released Sub. Monowheel 4282 | -10/Subcaves | Shifting Twisted Machinery released Mak. Shrapnel Gun 4540 | -10/Subcaves | Entered Materials 4540 | -8/Materials | Evolved 4 slots: Propulsion x2, Utility x2 4541 | -8/Materials | Identified exit to Factory 4542 | -8/Materials | Loaded intel: 12 terminal locations 4543 | -8/Materials | Attached Flightbrick, gained temporary slots: Utility x3 4587 | -8/Materials | Entered Factory 4587 | -7/Factory | Evolved 2 slots: Utility x1, Weapon x1 4588 | -7/Factory | Identified exit to Lower Caves 4588 | -7/Factory | Identified exit to Factory 4588 | -7/Factory | Identified exit to Storage 4607 | -7/Factory | X0-1V1 added 0b10 threat records associated with you (considerable) 4669 | -7/Factory | X0-1V1 announced a LAN party 4693 | -7/Factory | Entered Lower Caves 4747 | -7/Lower Caves | Encountered a Warlord checkpoint 4885 | -7/Lower Caves | Identified exit to Lower Caves 4909 | -7/Lower Caves | Found DCF Scrap (17 items) 4925 | -7/Lower Caves | Learned Factory terminal intel 4927 | -7/Lower Caves | X0-1V1 activates XOMVISION 5069 | -7/Lower Caves | Entered another Lower Caves area 5114 | -7/Lower Caves | Spotted B-75 Beast 5125 | -7/Lower Caves | X0-1V1 activates XOMVISION 5146 | -7/Lower Caves | System corruption reached 10% 5162 | -7/Lower Caves | Learned Factory garrison access intel 5183 | -7/Lower Caves | Discovered new exit (range 14) 5197 | -7/Lower Caves | Entered Zion 5218 | -7/Zion | System corruption cleaned by Quarantine Array 5221 | -7/Zion | Acquired unknown access codes intercepted by a Zionite 5235 | -7/Zion | Discovered new exit (range 16) 5242 | -7/Zion | Given A8's code to call for help 5277 | -7/Zion | Found CR-A16's Pointy Stick 5297 | -7/Zion | Given the Hacking Drone Bay 5298 | -7/Zion | Found Prototype Device 5304 | -7/Zion | Met Imprinter 5317 | -7/Zion | Received a visual enhancement algorithm 5321 | -7/Zion | Opened final containment barrier to the Deep Caves 5330 | -7/Zion | Visited the Megawrench Repair Shop 5343 | -7/Zion | Learned Factory emergency access door positions 5375 | -7/Zion | Build established: Sprinter 5380 | -7/Zion | Megawrench repaired 10 parts 5405 | -7/Zion | Enhanced Grunt warped into view, answering call for help 5408 | -7/Zion | Enhanced Grunt warped into view, answering call for help 5410 | -7/Zion | Discovered new exit (range 3) 5410 | -7/Zion | Saw the warning signs outside the Deep Caves entrance 5422 | -7/Zion | Entered Deep Caves 5422 | -7/Deep Caves | Accompanied by 2 allies 5559 | -7/Deep Caves | X0-1V1 poked a wall 5580 | -7/Deep Caves | Attacked by Z-Imprinter 5606 | -7/Deep Caves | Destroyed Z-Imprinter 5702 | -7/Deep Caves | Z-Facility disabled 5742 | -7/Deep Caves | Found Prototype Protection 5743 | -7/Deep Caves | Identified Zio. Weapon Casing 5759 | -7/Deep Caves | Lost 4 parts (1n1u2w) 5858 | -7/Deep Caves | Spotted Assembler 5865 | -7/Deep Caves | Discovered new exit (range 7) 5868 | -7/Deep Caves | Entered Proximity Caves 5870 | -6/Proximity Caves | Lost 5 parts (1p2n1u1w) 5870 | -6/Proximity Caves | Spotter reported a threat 5872 | -6/Proximity Caves | Spotter reported a threat 5904 | -6/Proximity Caves | X0-1V1 sent hostile S-27 Virus (x4) 5923 | -6/Proximity Caves | Spotter reported a threat 5925 | -6/Proximity Caves | Spotter reported a threat 5929 | -6/Proximity Caves | Discovered exit to Factory (range 10) 5929 | -6/Proximity Caves | X0-1V1 activates XOMVISION 5931 | -6/Proximity Caves | Entered Factory 5931 | -6/Factory | Evolved 2 slots: Propulsion x1, Utility x1 5933 | -6/Factory | Loaded intel: 26 terminal locations 5934 | -6/Factory | Loaded intel: 4 garrison access locations 6091 | -6/Factory | Identified Hacking Drone Bay 6128 | -6/Factory | X0-1V1 released a cloud of subatomizers 6188 | -6/Factory | X0-1V1 announced a LAN party 6196 | -6/Factory | Sensors blinded by X0-1V1 6198 | -6/Factory | Identified exit to Factory 6198 | -6/Factory | X0-1V1 revealed exit location to -5/Factory 6281 | -6/Factory | Search patrols dispatched 6330 | -6/Factory | Discovered new exit (range 5) 6347 | -6/Factory | Entered Lower Caves 6347 | -6/Lower Caves | Accompanied by 1 ally 6390 | -6/Lower Caves | X0-1V1 mutated your Utility slot to Propulsion slot 6455 | -6/Lower Caves | Encountered a Warlord checkpoint 6471 | -6/Lower Caves | Build established: Mutant 6792 | -6/Lower Caves | Identified exit to Lower Caves 6821 | -6/Lower Caves | X0-1V1 sent hostile G-47 Trooper (x3) 6831 | -6/Lower Caves | Entered another Lower Caves area 6885 | -6/Lower Caves | Identified exit to Data Miner 6885 | -6/Lower Caves | X0-1V1 revealed exit location to -6/Data Miner 6944 | -6/Lower Caves | X0-1V1 revealed exit location to -5/Factory 6958 | -6/Lower Caves | Encountered a Warlord checkpoint 6978 | -6/Lower Caves | Found DCF Scrap (11 items) 6994 | -6/Lower Caves | Learned 8 Factory zone layouts 8165 | -6/Lower Caves | Build established: Gunner 8227 | -6/Lower Caves | X0-1V1 activates XOMVISION 8773 | -6/Lower Caves | Build established: Tank 9143 | -6/Lower Caves | X0-1V1 activates XOMVISION 9259 | -6/Lower Caves | X0-1V1 sent hostile Fireman (x3) 9324 | -6/Lower Caves | X0-1V1 vaporized surrounding terrain (radius 23) 10086 | -6/Lower Caves | X0-1V1 activates XOMVISION 10119 | -6/Lower Caves | Crushed by falling debris 10122 | -6/Lower Caves | Entered Data Miner 10123 | -6/Data Miner | Discovered new exit (range 6) 10132 | -6/Data Miner | Met Data Miner 10148 | -6/Data Miner | Learned location of Section 7 (-2) 10148 | -6/Data Miner | Acquired the access code to Warlord's prototype stash 10156 | -6/Data Miner | Received God Mode back door access code from Data Miner 10170 | -6/Data Miner | Entered Proximity Caves 10185 | -5/Proximity Caves | X0-1V1 revealed exit location to -5/Factory 10243 | -5/Proximity Caves | Learned 8 Factory zone layouts 10332 | -5/Proximity Caves | X0-1V1 mutated your Propulsion slot to Weapon slot 10419 | -5/Proximity Caves | X0-1V1 sent hostile Guerrilla (x1) 10425 | -5/Proximity Caves | Entered Factory 10425 | -5/Factory | Evolved 2 slots: Propulsion x1, Utility x1 10426 | -5/Factory | Identified exit to Upper Caves 10427 | -5/Factory | Identified exit to Factory 10493 | -5/Factory | Build established: Gunner 10558 | -5/Factory | Lost 3 parts (1p2w) 10651 | -5/Factory | Spotted B-75 Beast 10654 | -5/Factory | Discovered exit to Factory (range 16) 10655 | -5/Factory | Assembled infested ambush trap array 10664 | -5/Factory | Entered another Factory area 10664 | -4/Factory | Evolved 2 slots: Power x1, Utility x1 10666 | -4/Factory | X0-1V1 enhanced Transport squad support 10672 | -4/Factory | Lost 7 parts (1p2n1u3w) 10687 | -4/Factory | X0-1V1 sent you to a vault 10697 | -4/Factory | Found Gamma Bomb Array 10747 | -4/Factory | Found Prototype Processor 10747 | -4/Factory | Identified Exp. Melee Analysis Suite 10756 | -4/Factory | Found Prototype Slashing Weapon 10756 | -4/Factory | Identified Hvy. Scimitar of Distortion 10774 | -4/Factory | Found Prototype Device 10775 | -4/Factory | Identified Exp. Phase Shifter 10834 | -4/Factory | Identified exit to Upper Caves 11017 | -4/Factory | X0-1V1 foreshadows a heat wave 11034 | -4/Factory | Build established: Tank 11155 | -4/Factory | Identified exit to Research 11155 | -4/Factory | X0-1V1 revealed exit location to -3/Research 11171 | -4/Factory | Entered Upper Caves 11173 | -4/Upper Caves | Attracted the attention of an 0b10 checkpoint 11210 | -4/Upper Caves | System corruption reached 10% 11261 | -4/Upper Caves | Learned 4 Research zone layouts 11444 | -4/Upper Caves | Discovered new exit (range 8) 11467 | -4/Upper Caves | Learned Research trap positions 11478 | -4/Upper Caves | Entered another Upper Caves area 11646 | -4/Upper Caves | Discovered exit to Research (range 17) 11935 | -4/Upper Caves | System corruption reached 30% 11998 | -4/Upper Caves | Lost 5 parts (1p2u2w) 12020 | -4/Upper Caves | Identified exit to Warlord 12020 | -4/Upper Caves | X0-1V1 revealed exit location to -4/Warlord 12055 | -4/Upper Caves | Learned Research stockpile data 12078 | -4/Upper Caves | X0-1V1 activates XOMVISION 12130 | -4/Upper Caves | Entered Warlord 12186 | -4/Warlord | System corruption cleaned by Quarantine Array 12298 | -4/Warlord | Opened Warlord's prototype stash 12318 | -4/Warlord | Found Prototype Hackware 12330 | -4/Warlord | Found Prototype Reactor 12337 | -4/Warlord | Found Prototype Processor 12337 | -4/Warlord | Identified Exp. Targeting Computer 12764 | -4/Warlord | Warlord's base attacked by MAIN.C 12834 | -4/Warlord | Learned 4 Quarantine zone layouts 12834 | -4/Warlord | Learned 4 Armory zone layouts 12834 | -4/Warlord | Learned location of Armory (-3) 12835 | -4/Warlord | Learned Testing security intel 12909 | -4/Warlord | Met Warlord 12983 | -4/Warlord | Found Prototype Energy Cannon 12983 | -4/Warlord | Identified Vortex Cannon 12986 | -4/Warlord | Identified Vortex Chain Reactor 12998 | -4/Warlord | Found Vortex Cannon 13114 | -4/Warlord | Warlord forces counterattacked 13172 | -4/Warlord | Identified exit to Proximity Caves 13172 | -4/Warlord | X0-1V1 revealed exit location to -3/Proximity Caves 13265 | -4/Warlord | Spotted Executioner 13284 | -4/Warlord | Lost 12 allies 13360 | -4/Warlord | Spotted Striker 13366 | -4/Warlord | X0-1V1 downgraded hostiles (x4) 13399 | -4/Warlord | Spotted B-86 Titan 13400 | -4/Warlord | X0-1V1 sent allied G-67 Veteran (x4) 13405 | -4/Warlord | Spotted Striker 13439 | -4/Warlord | Warlord base infiltrated, sounded retreat 13452 | -4/Warlord | Lost 5 allies 13459 | -4/Warlord | Lost 8 parts (2p3n1u2w) 13459 | -4/Warlord | Spotted B-90 Cyclops 13539 | -4/Warlord | Found Prototype Device 13542 | -4/Warlord | Found Prototype Launcher 13542 | -4/Warlord | Identified Chain Missile Launcher 13551 | -4/Warlord | Identified Exp. Shock Absorption System 13571 | -4/Warlord | Spotted Executioner 13574 | -4/Warlord | Spotted Executioner 13581 | -4/Warlord | Spotted Executioner 13602 | -4/Warlord | Lost 3 allies 13602 | -4/Warlord | Destroyed Executioner 13608 | -4/Warlord | Destroyed Executioner 13620 | -4/Warlord | Destroyed Executioner 13650 | -4/Warlord | Destroyed 15 combat bots 13657 | -4/Warlord | Lost 9 parts (3p3n1u2w) 13657 | -4/Warlord | Entered Proximity Caves 13667 | -3/Proximity Caves | Core integrity fell below 50% 13696 | -3/Proximity Caves | X0-1V1 downgraded hostiles (x1) 13724 | -3/Proximity Caves | Identified Ghost Barrier 13736 | -3/Proximity Caves | Lost 9 parts (4n3u2w) 13787 | -3/Proximity Caves | Core integrity restored by X0-1V1 (+273) 13928 | -3/Proximity Caves | Build established: Scavenger-Mutant 13989 | -3/Proximity Caves | X0-1V1 revealed exit location to -3/Research 14045 | -3/Proximity Caves | X0-1V1 mutated your Weapon slot to Propulsion slot 14103 | -3/Proximity Caves | X0-1V1 sent you into danger 14104 | -3/Proximity Caves | Attracted the attention of an 0b10 base 14108 | -3/Proximity Caves | Entered Research 14108 | -3/Research | Evolved 2 slots: Utility x2 14109 | -3/Research | Identified exit to Testing 14110 | -3/Research | Loaded intel: 91 trap records 14136 | -3/Research | Lost 4 parts (1p1n2u) 14227 | -3/Research | X0-1V1 revealed exit location to -3/Testing 14644 | -3/Research | Weapon slot count temporarily expanded by X0-1V1 (+2) 14696 | -3/Research | X0-1V1 added 0b10 threat records associated with you (considerable) 14781 | -3/Research | System corruption reached 10% 14853 | -3/Research | Entered Testing 14878 | -3/Testing | Protovariant out of control (PY-IQPXR6YXFN) 14974 | -3/Testing | Found Prototype Hackware 14994 | -3/Testing | Spotted PY-IQPXR6YXFN 15029 | -3/Testing | Spotted Investigator 15029 | -3/Testing | Scanned by Researcher 15032 | -3/Testing | Destroyed Investigator 15152 | -3/Testing | Build established: Scavenger-Gunner 15161 | -3/Testing | Found Prototype Device 15161 | -3/Testing | Identified Exp. Shield Generator 15173 | -3/Testing | Found Exp. Shield Generator 15193 | -3/Testing | Spotted Striker 15193 | -3/Testing | Spotted Striker 15210 | -3/Testing | Spotted Alpha 7 15228 | -3/Testing | Destroyed Striker 15258 | -3/Testing | Found Prototype Ballistic Gun 15260 | -3/Testing | Found Prototype Energy Gun 15261 | -3/Testing | Identified Enh. Gamma Rifle 15263 | -3/Testing | Identified Multirail 15325 | -3/Testing | Stole the SGEMP Prototype 15410 | -3/Testing | Destroyed Alpha 7 15422 | -3/Testing | Found Prototype Device 15422 | -3/Testing | Identified System Purifier 15541 | -3/Testing | Build established: Scavenger-Tank 15555 | -3/Testing | X0-1V1 announced a LAN party 15776 | -3/Testing | X0-1V1 enhanced Transport squad support 15793 | -3/Testing | Found Corrupted Prototype Launcher 15836 | -3/Testing | Identified Com. Tesla Bomb Launcher 15837 | -3/Testing | X0-1V1 upgraded hostiles (x2) 15850 | -3/Testing | X0-1V1 mutated your Propulsion slot to Utility slot 15974 | -3/Testing | Discovered new exit (range 16) 16029 | -3/Testing | Entered Research 16029 | -2/Research | Warlord forces began assault on 0b10 16029 | -2/Research | Evolved 2 slots: Power x1, Propulsion x1 16029 | -2/Research | Identified System Mapper 16052 | -2/Research | Lost 5 parts (2p1n2u) 16139 | -2/Research | Research machine network offline 16209 | -2/Research | Met up with Warlord 16211 | -2/Research | Met DD-05H 16250 | -2/Research | X0-1V1 sent you into danger 16266 | -2/Research | X0-1V1 added 0b10 threat records associated with you (major) 16296 | -2/Research | Borebot progress halted 16415 | -2/Research | Borebot progress halted 16508 | -2/Research | X0-1V1 sent hostile H-77 Assassin (x3) 16577 | -2/Research | Spotted Striker 16583 | -2/Research | Spotted Striker 16587 | -2/Research | Destroyed Striker 16735 | -2/Research | Discovered new exit (range 17) 16735 | -2/Research | Spotted Striker 16751 | -2/Research | Rewired Striker 16852 | -2/Research | Borebot progress halted 17013 | -2/Research | X0-1V1 vaporized surrounding terrain (radius 17) 17077 | -2/Research | Found Prototype Launcher 17083 | -2/Research | Identified Tesla Bomb Launcher 17099 | -2/Research | Spotted Executioner 17109 | -2/Research | Destroyed Executioner 17116 | -2/Research | Spotted Executioner 17134 | -2/Research | Destroyed Executioner 17140 | -2/Research | Found Prototype Device 17162 | -2/Research | Found Prototype Processor 17211 | -2/Research | Found Prototype Processor 17219 | -2/Research | Spotted Executioner 17223 | -2/Research | Destroyed Executioner 17265 | -2/Research | Discovered new exit (range 15) 17296 | -2/Research | X0-1V1 mutated your Utility slot to Propulsion slot 17296 | -2/Research | Spotted Striker 17296 | -2/Research | Spotted Executioner 17300 | -2/Research | Destroyed Striker 17312 | -2/Research | Destroyed Executioner 17318 | -2/Research | Spotted Executioner 17321 | -2/Research | Destroyed Executioner 17321 | -2/Research | Spotted Executioner 17325 | -2/Research | Destroyed Executioner 17347 | -2/Research | Identified Exp. Core Analyzer (x2) 17353 | -2/Research | Destroyed 8 combat bots 17355 | -2/Research | Identified Adv. Kinecellerator 17358 | -2/Research | X0-1V1 sent hostile G-67 Veteran (x3) 17389 | -2/Research | Found Exp. Core Analyzer 17395 | -2/Research | Found Adv. Kinecellerator 17396 | -2/Research | Lost 3 allies 17402 | -2/Research | Discovered new exit (range 12) 17425 | -2/Research | Build established: Scavenger-Gunner 17532 | -2/Research | Given Cave Seal Controls access code 17542 | -2/Research | Spotted Striker 17552 | -2/Research | Spotted Executioner 17554 | -2/Research | Entered Quarantine 17555 | -2/Quarantine | Identified exit to Section 7 17555 | -2/Quarantine | Identified exit to Protoforge 17592 | -2/Quarantine | Lost 5 allies 17681 | -2/Quarantine | X0-1V1 redirected Transport squads to designated parking area 17696 | -2/Quarantine | Cryocooling Duct disabled 17709 | -2/Quarantine | Spotted Alpha 7 17711 | -2/Quarantine | Ambient heat levels rising (+20) 17711 | -2/Quarantine | Non-combat units ordered to evacuate 17743 | -2/Quarantine | Destroyed Alpha 7 17749 | -2/Quarantine | Found Prototype Device 17749 | -2/Quarantine | Identified Exp. ECM Suite 17754 | -2/Quarantine | Found Multirail 17767 | -2/Quarantine | Found Alien Launcher 17883 | -2/Quarantine | Met incapacitated Sigix Warrior 17883 | -2/Quarantine | Lockdown squad dispatched 17885 | -2/Quarantine | Acquired the access code to the Sigix quarantine chamber 17888 | -2/Quarantine | Unlocked Sigix quarantine chamber 17892 | -2/Quarantine | Found Sigix Containment Pod 17952 | -2/Quarantine | Found Alien Artifact 17952 | -2/Quarantine | Identified Dimensional Node Initializer 17952 | -2/Quarantine | Initialized slip node 17960 | -2/Quarantine | Found Dimensional Node Initializer 17965 | -2/Quarantine | Found Alien Artifact 17971 | -2/Quarantine | Found Alien Artifact 17975 | -2/Quarantine | Found Alien Artifact 17978 | -2/Quarantine | Found Alien Artifact 18029 | -2/Quarantine | Found Alien Slashing Weapon 18229 | -2/Quarantine | Discovered new exit (range 13) 18303 | -2/Quarantine | X0-1V1 announced a LAN party 18554 | -2/Quarantine | First assault squad dispatched 18564 | -2/Quarantine | System corruption reached 10% 18583 | -2/Quarantine | Incoming assault squad redirected 18612 | -2/Quarantine | Lost 8 parts (3p1n3u1w) 18692 | -2/Quarantine | Found Alien Impact Weapon 18724 | -2/Quarantine | X0-1V1 vaporized surrounding terrain (radius 22) 18741 | -2/Quarantine | Identified Core Stripper 18799 | -2/Quarantine | Spotted Fortress 18804 | -2/Quarantine | Destroyed Fortress 18815 | -2/Quarantine | Found Prototype Device 18816 | -2/Quarantine | Identified Exp. Force Field 18830 | -2/Quarantine | Incoming assault squad redirected 18843 | -2/Quarantine | Found Vortex Chain Reactor 18898 | -2/Quarantine | Found Prototype Device 18901 | -2/Quarantine | Found Prototype Device 18902 | -2/Quarantine | Identified Thermal Barrier 18903 | -2/Quarantine | Identified Exp. EM Shield 18910 | -2/Quarantine | Found Vortex Chain Reactor 19108 | -2/Quarantine | Build established: Scavenger-Tank 19185 | -2/Quarantine | X0-1V1 added 0b10 threat records associated with you (major) 19264 | -2/Quarantine | Entered Section 7 19328 | -2/Section 7 | Identified exit to Access 19328 | -2/Section 7 | Spotted B-90 Cyclops 19373 | -2/Section 7 | Spotted S7 Guard 19378 | -2/Section 7 | Scanned by Researcher 19427 | -2/Section 7 | Found Alien Artifact 19432 | -2/Section 7 | X0-1V1 sent allied Cetus Guard (x2) 19435 | -2/Section 7 | Identified Navigation Efficiency Matrix 19435 | -2/Section 7 | Installed Navigation Efficiency Matrix, process failed with unexpected side effects 19442 | -2/Section 7 | Core integrity fell below 50% 19442 | -2/Section 7 | Destroyed B-90 Cyclops 19446 | -2/Section 7 | Garrison activated, responded to threat 19453 | -2/Section 7 | Lost 4 parts (1p3u) 19514 | -2/Section 7 | First assault squad dispatched 19579 | -2/Section 7 | Destroyed 8 combat bots 19600 | -2/Section 7 | X0-1V1 downgraded hostiles (x1) 19613 | -2/Section 7 | Lost 9 parts (2p2n2u3w) 19626 | -2/Section 7 | Found Alien Artifact 19627 | -2/Section 7 | Identified Core Reset Matrix 19627 | -2/Section 7 | Identified Hpw. Transdimensional Reconstructor (x2) 19627 | -2/Section 7 | Identified Sigix Terminator 19627 | -2/Section 7 | Identified Sigix Broadsword 19627 | -2/Section 7 | Used Core Reset Matrix 19631 | -2/Section 7 | Detected hypermatrix surge 19631 | -2/Section 7 | Sensed 19 artifacts in vicinity 19729 | -2/Section 7 | Warped through subspace 19781 | -2/Section 7 | Warped through subspace 19781 | -2/Section 7 | Spotted Alpha 7 19781 | -2/Section 7 | Spotted B-99 Colossus 19783 | -2/Section 7 | Spotted Alpha 7 19836 | -2/Section 7 | Core integrity fell below 20% 19859 | -2/Section 7 | Spotted Executioner 19859 | -2/Section 7 | Spotted Executioner 19866 | -2/Section 7 | Activated Sigix Exoskeleton 19866 | -2/Section 7 | Received instructions from Sigix Warrior 19875 | -2/Section 7 | Lost 5 parts (1p1n2u1w) 19894 | -2/Section 7 | X0-1V1 added 0b10 threat records associated with you (minor) 19899 | -2/Section 7 | Core integrity restored by X0-1V1 (+256) 19914 | -2/Section 7 | X0-1V1 turns hostiles against one another 19933 | -2/Section 7 | X0-1V1 activates XOMVISION 19939 | -2/Section 7 | Intercept squad dispatched 19978 | -2/Section 7 | Allies destroyed Alpha 7 20003 | -2/Section 7 | Sigix Exoskeleton integrity reduced to 80% 20004 | -2/Section 7 | Destroyed by G-73 Enforcer with Phase Gun Last Messages --------------- 19996_ L-61 Swordsman unfolds itself. 19996_ G-73 Enforcer unfolds itself. 19996_ M-36 Artificer unfolds itself. 19996_ Gamma Rifle destroyed. 19996_ Imp. Antigrav System destroyed. 19997_ Navigation matrix triggers involuntary quantum shift. 19997_ Mic. Antimatter Reactor destroyed. 19998_ Imp. Antigrav System destroyed. 19998_ Dropped Adv. Energy Well. 19998_ Exp. Optical Array destroyed. 19998_ System corrupted by crushing effect (+5). 19998_ Acquired 100 matter. Prototype Device suddenly appears amidst shimmering waves of color. 20001_ Imp. Antigrav System destroyed. 20001_ B-74 Champion suffers critical hit (Burn). 20004_ Adv. Heat Sink destroyed. 20004_ X0-1V1 laughs nastily! Map ----- +----------------------------------------------------+ | ????????????????????????????????????" ?????? | | ????????????????????????????????????" "????" | | ????????????????????????????????????" "???"" | | ????????????????????????????????????" ???? | | ????????????????????????????????????" ????? | | ????????????????????????????????????" "????? | | ????????????????????????????????????" "????" | | ??????????????????H?????????????????" """""" | | ??????????????????????u?????????????" | | ????????????????????????????????????" | | ????????????????????????????????????" | | ????????????????????????????????????" | | ????????????????????????????????????" | | ??????????????????????Y?????????????" " | | ???????????????????????????????????#" """" | | ???????????????????????????????????# "??" | | ???????????????????????????????????#" """" | | ???????????????????????????????????#"" s " | | ???????????????????????????????????#""" " " " | | ???????????????????????????????????#""" eg """" | | ?????????????????????????????????###""" % "?" " | | ???????????###+################### #X l """""" | | ??????????? A g%;gm %g %%%%! | | ?????????? g ggi b ""! /% | | ?????????? g ! g [gg%%" [% | | ?????????? @ g g gg! l%%" !% | | ???????????????###################"# g" | | ?????????????????????????????????### | | ???????????????????????????????????#" " | | ???????????????????????????????????#"" | | ???????????????????????????????????#" | | ???????????????????????????????????# | | ?????!?????????????????????????????# """""""" | | ???????????????????????????????????# """""""" | | ???????????????????????????????????############### | | ?????????????????????????????????????????????????? | | ?????????????????????????????????????????????????? | | ?????????????????????????????????????????????????? | | ?????????????????????????????????????????????????? | | ?????????????????????????????????????????????????? | | ?????????????????????????????????????????????????? | | ?????????????????????????????????????????????????? | | ?????????????????????????????????????????????????? | | ?????????????????????????????????????????????????? | | ?????????????????????????????????????????????????? | | ?????????????????????????????????????????????????? | | ?????????????????????????????????????????????????? | | ???????????????????????????????????????????????!!? | | ?????????????????????????????????????????????????? | | ?????????????????????????????????????????????????? | +----------------------------------------------------+ Best States ------------- Heat Dissipation 249 Coolant Potential 100 Energy Generation 97 Energy Capacity 2290 Matter Stores 1000 Matter Capacity 1000 Sight Range 29 Terrain Scan Range 16 Terrain Scan Density 10 ECM Strength 3 Jamming Range 14 Cloak Strength 2 Power Amplification 20 Additional Mass Support 12 Corruption Block 6 Armor Coverage 825 Resistance: KI 20 Resistance: TH 50 Resistance: EX 75 Resistance: EM 75 Core Shielding 10 Weapon Shielding 100 Weapon Cycling 25 Phase Shifting 20 Evasion (%) 75 Targeting Accuracy 12 Core Analysis 12 Armor Integrity Analysis 40 Recoil Reduction 8 Energy Filtering 50 Particle Charging 20 Kinecelleration 50 Salvage Targeting 4 Offensive Hacking 32 Defensive Hacking 20 Item Schematics ----------------- None Robot Schematics ------------------ None Fabricated ------------ Nothing Repaired ---------- Nothing Studied --------- None Alien Tech Used ----------------- Dimensional Node Initializer Core Stripper Navigation Efficiency Matrix Core Reset Matrix High-powered Transdimensional Reconstructor Sigix Broadsword Achievements -------------- None Challenges ------------ None Game ------ Seed MetamassSensorDerivative Manual? 0 Play Time 03:21:35 Cumulative 1002.3 hours Start 2026.07.17 @ 01:07:06 End 2026.07.18 @ 15:55:43 Sessions 20 Manual Loads 0 Difficulty Rogue Special Mode None Game No. 1135 Rogue 1135 Adventurer 0 Explorer 0 Win Type - Total 45 Types 22/1/9/3/2/1/3/2/1/1 Lore% 98 Gallery% 97 Achievement% 93 Wizard Run 0 Options --------- Layout 2 ASCII 0 Keyboard 0 Movement Mouse Keybinds 0 Fullscreen 2 Font 24/X11 Map View 50x49 Zoom Use 0% Tactical HUD 1 Map Filters NONE Filters NONE Steam 1 RUN: 19eee53f-413b-4c0b-bf08-df40d028320b